Workbook

Sheet Modèles
A1: =+REPT("-",300) -> ------------------------------------------------------------------------------------------------------------------------------------------------------------------------------------------------------------------------------------------------------------------------------------------------------------
N2: GCO F
B3: GCO Belgique seule | G3: GCO Belgique+GCO France (2M€ en 09)
A4: EXPLOITATION en K€ | B4: 2005 | C4: 2006 | D4: 2007 | E4: 2008 | G4: 2009 | H4: =G4+1 -> 2010 | I4: =H4+1 -> 2011 | J4: =I4+1 -> 2012 | K4: =J4+1 -> 2013 | N4: 2009
A5: CA | B5: ='[1]Data GCO'!D5 -> 2180 | C5: ='[1]Data GCO'!E5 -> 4349 | D5: ='[1]Analytique GCO'!C26 -> 5530 | E5: ='[1]Analytique GCO'!D26 -> 5700 | F5: 0.05 | G5: =E5*(1+$F$5)+N5 -> 7985 | H5: =G5*(1+$F$5) -> 8384.25 | I5: =H5*(1+$F$5) -> 8803.4625 | J5: =I5*(1+$F$5) -> 9243.635625 | K5: =J5*(1+$F$5) -> 9705.817406 | N5: ='[1]synergies TSF GCO ATD'!C5 -> 2000
A6: Autres produits | D6: ='[1]Analytique GCO'!C27 -> 0 | E6: ='[1]Analytique GCO'!D27 -> 0 | N6: ='[1]synergies TSF GCO ATD'!C6 -> 0
A7: Coût des ventes | D7: ='[1]Analytique GCO'!C28 -> 3838.5 | E7: ='[1]Analytique GCO'!D28 -> 3933 | G7: =G5-G9 -> 5485.695 | H7: =H5-H9 -> 5734.827 | I7: =I5-I9 -> 5995.157962 | J7: =J5-J9 -> 6267.184954 | K7: =K5-K9 -> 6551.426749 | N7: ='[1]synergies TSF GCO ATD'!C7 -> 1380
A8: MB% | D8: ='[1]Analytique GCO'!C29 -> 0.3058770344 | E8: ='[1]Analytique GCO'!D29 -> 0.31 | F8: 0.003 | G8: =E8+$F$8 -> 0.313 | H8: =G8+$F$8 -> 0.316 | I8: =H8+$F$8 -> 0.319 | J8: =I8+$F$8 -> 0.322 | K8: =J8+$F$8 -> 0.325 | N8: ='[1]synergies TSF GCO ATD'!C8 -> 0.31
A9: Marge brute | B9: ='[1]Data GCO'!D9 -> 673.7 | C9: ='[1]Data GCO'!E9 -> 1328 | D9: ='[1]Analytique GCO'!C30 -> 1691.5 | E9: ='[1]Analytique GCO'!D30 -> 1767 | G9: =G8*G5 -> 2499.305 | H9: =H8*H5 -> 2649.423 | I9: =I8*I5 -> 2808.304538 | J9: =J8*J5 -> 2976.450671 | K9: =K8*K5 -> 3154.390657 | N9: ='[1]synergies TSF GCO ATD'!C9 -> 620
A10: Logistique | D10: ='[1]Analytique GCO'!C31 -> 327.907 | E10: ='[1]Analytique GCO'!D31 -> 200 | G10: =E10/E5*G5 -> 280.1754386 | H10: =G10/G5*H5 -> 294.1842105 | I10: =H10/H5*I5 -> 308.8934211 | J10: =I10/I5*J5 -> 324.3380921 | K10: =J10/J5*K5 -> 340.5549967 | N10: ='[1]synergies TSF GCO ATD'!C10 -> 70.1754386
A11: Force de vente | D11: ='[1]Analytique GCO'!C32 -> 432.555 | E11: ='[1]Analytique GCO'!D32 -> 600 | F11: moitié | G11: =E11*(1+$F$5/2)+N11 -> 815 | H11: =G11*(1+$F$5/2) -> 835.375 | I11: =H11*(1+$F$5/2) -> 856.259375 | J11: =I11*(1+$F$5/2) -> 877.6658594 | K11: =J11*(1+$F$5/2) -> 899.6075059 | N11: ='[1]synergies TSF GCO ATD'!C11 -> 200
A12: Marketing | D12: ='[1]Analytique GCO'!C33 -> 49.6665 | E12: ='[1]Analytique GCO'!D33 -> 40 | F12: prop | G12: =E12*(1+$F$5)+N12 -> 62 | H12: =G12*(1+$F$5) -> 65.1 | I12: 68.355 | J12: 71.77275 | K12: 75.3613875 | N12: ='[1]synergies TSF GCO ATD'!C12 -> 20
A13: FGx 1 (AACE Siège) | D13: ='[1]Analytique GCO'!C34 -> 118.9355 | E13: ='[1]Analytique GCO'!D34 -> 130 | F13: prop | G13: =E13*(1+$F$5)+N13 -> 236.5 | H13: 248.325 | I13: 260.74125 | J13: 273.7783125 | K13: 287.4672281 | N13: ='[1]synergies TSF GCO ATD'!C13 -> 100
A14: FGx 2 (salaires siège) | D14: ='[1]Analytique GCO'!C35 -> 397.8 | E14: ='[1]Analytique GCO'!D35 -> 330 | F14: moitié | G14: =E14*(1+$F$5)+N14 -> 496.5 | H14: =G14*(1+$F$5/2) -> 508.9125 | I14: =H14*(1+$F$5/2) -> 521.6353125 | J14: =I14*(1+$F$5/2) -> 534.6761953 | K14: =J14*(1+$F$5/2) -> 548.0431002 | N14: ='[1]synergies TSF GCO ATD'!C14 -> 150
A15: Impôts et Taxes | D15: ='[1]Analytique GCO'!C36 -> 0 | E15: ='[1]Analytique GCO'!D36 -> 0 | G15: =N15 -> 25 | H15: =G15/G5*H5 -> 26.25 | I15: =H15/H5*I5 -> 27.5625 | J15: =I15/I5*J5 -> 28.940625 | K15: =J15/J5*K5 -> 30.38765625 | N15: ='[1]synergies TSF GCO ATD'!C15 -> 25
A16: Autres charges | D16: ='[1]Analytique GCO'!C37 -> 0 | E16: ='[1]Analytique GCO'!D37 -> 0 | N16: ='[1]synergies TSF GCO ATD'!C16 -> 0
A17: Charges d'exploitation | B17: ='[1]Data GCO'!D14 -> 692.2 | C17: ='[1]Data GCO'!E14 -> 1148.6 | D17: ='[1]Analytique GCO'!C38 -> 1326.864 | E17: ='[1]Analytique GCO'!D38 -> 1300 | G17: =SUM(G10:G16) -> 1915.175439 | H17: =SUM(H10:H16) -> 1978.146711 | I17: =SUM(I10:I16) -> 2043.446859 | J17: =SUM(J10:J16) -> 2111.171834 | K17: =SUM(K10:K16) -> 2181.421875 | N17: ='[1]synergies TSF GCO ATD'!C17 -> 565.1754386
A18: Amortissements | B18: ='[1]Data GCO'!D15 -> 0 | C18: ='[1]Data GCO'!E15 -> 0 | D18: ='[1]Analytique GCO'!C39 -> 67 | E18: ='[1]Analytique GCO'!D39 -> 70 | G18: =E18+N18 -> 81 | H18: =G18 -> 81 | I18: =H18 -> 81 | J18: =I18 -> 81 | K18: =J18 -> 81 | N18: ='[1]synergies TSF GCO ATD'!C18 -> 11
A19: Provisions | B19: ='[1]Data GCO'!D16 -> 33.3 | C19: ='[1]Data GCO'!E16 -> 57.2 | D19: ='[1]Analytique GCO'!C40 -> 0 | E19: ='[1]Analytique GCO'!D40 -> 0 | G19: =E19+N19 -> 15 | H19: =G19*(1+$F$5) -> 15.75 | I19: =H19*(1+$F$5) -> 16.5375 | J19: =I19*(1+$F$5) -> 17.364375 | K19: =J19*(1+$F$5) -> 18.23259375 | N19: ='[1]synergies TSF GCO ATD'!C19 -> 15
A20: EBIT | B20: ='[1]Data GCO'!D17 -> -52 | C20: ='[1]Data GCO'!E17 -> 122.2 | D20: ='[1]Analytique GCO'!C41 -> 297.636 | E20: ='[1]Analytique GCO'!D41 -> 397 | G20: =G9-G17-G18-G19 -> 488.1295614 | H20: =H9-H17-H18-H19 -> 574.5262895 | I20: =I9-I17-I18-I19 -> 667.3201789 | J20: =J9-J17-J18-J19 -> 766.914462 | K20: =K9-K17-K18-K19 -> 873.7361886 | N20: ='[1]synergies TSF GCO ATD'!C20 -> 28.8245614
A21: Frais Financiers | B21: ='[1]Data GCO'!D18 -> -17 | C21: ='[1]Data GCO'!E18 -> -59.2 | D21: ='[1]Analytique GCO'!C42 -> -60.8 | E21: ='[1]Analytique GCO'!D42 -> -70 | F21: 0.05 | G21: =-$F$21*(E46+E47+E48) -> -35 | H21: =-$F$21*(G46+G47+G48) -> -50 | I21: =-$F$21*(H46+H47+H48) -> -35 | J21: =-$F$21*(I46+I47+I48) -> -35 | K21: =-$F$21*(J46+J47+J48) -> -35 | N21: ='[1]synergies TSF GCO ATD'!C21 -> 0
A22: RCAI | B22: ='[1]Data GCO'!D19 -> -69 | C22: ='[1]Data GCO'!E19 -> 63 | D22: ='[1]Analytique GCO'!C43 -> 236.836 | E22: ='[1]Analytique GCO'!D43 -> 327 | G22: =G20+G21 -> 453.1295614 | H22: =H20+H21 -> 524.5262895 | I22: =I20+I21 -> 632.3201789 | J22: =J20+J21 -> 731.914462 | K22: =K20+K21 -> 838.7361886 | N22: ='[1]synergies TSF GCO ATD'!C22 -> 28.8245614
A23: Exceptionnels | B23: ='[1]Data GCO'!D20 -> 0 | C23: ='[1]Data GCO'!E20 -> 0 | D23: ='[1]Analytique GCO'!C44 -> 0 | E23: ='[1]Analytique GCO'!D44 -> 0 | G23: 0 | H23: 0 | I23: 0 | J23: 0 | K23: 0 | N23: ='[1]synergies TSF GCO ATD'!C23 -> 0
A24: IS | B24: ='[1]Data GCO'!D21 -> 0 | C24: ='[1]Data GCO'!E21 -> -19.4 | D24: ='[1]Analytique GCO'!C45 -> -84.5 | E24: ='[1]Analytique GCO'!D45 -> -90 | F24: 0.33 | G24: =-(G22+G23)*$F$24 -> -149.5327553 | H24: =-(H22+H23)*$F$24 -> -173.0936755 | I24: =-(I22+I23)*$F$24 -> -208.6656591 | J24: =-(J22+J23)*$F$24 -> -241.5317724 | K24: =-(K22+K23)*$F$24 -> -276.7829423 | N24: ='[1]synergies TSF GCO ATD'!C24 -> 0
A25: Résultat net | B25: ='[1]Data GCO'!D22 -> -69 | C25: ='[1]Data GCO'!E22 -> 63 | D25: ='[1]Analytique GCO'!C46 -> 152.336 | E25: ='[1]Analytique GCO'!D46 -> 237 | G25: =G22+G23+G24 -> 303.5968061 | H25: =H22+H23+H24 -> 351.4326139 | I25: =I22+I23+I24 -> 423.6545199 | J25: =J22+J23+J24 -> 490.3826895 | K25: =K22+K23+K24 -> 561.9532464 | N25: ='[1]synergies TSF GCO ATD'!C25 -> 28.8245614
A26: Marge brute Autofincmt | B26: ='[1]Data GCO'!D23 -> -35.7 | C26: =+C25+C18 -> 63 | D26: =+D25+D18 -> 219.336 | E26: =+E25+E18 -> 307 | G26: =+G25+G18 -> 384.5968061 | H26: =+H25+H18 -> 432.4326139 | I26: =+I25+I18 -> 504.6545199 | J26: =+J25+J18 -> 571.3826895 | K26: =+K25+K18 -> 642.9532464 | N26: ='[1]synergies TSF GCO ATD'!C26 -> 39.8245614
A27: =A1 -> ------------------------------------------------------------------------------------------------------------------------------------------------------------------------------------------------------------------------------------------------------------------------------------------------------------
A28: FINANCEMENT | B28: =B4 -> 2005 | C28: =C4 -> 2006 | D28: =D4 -> 2007 | E28: =E4 -> 2008 | G28: =G4 -> 2009 | H28: =H4 -> 2010 | I28: =I4 -> 2011 | J28: =J4 -> 2012 | K28: =K4 -> 2013
A29: MBA | C29: =C26 -> 63 | D29: =D26 -> 219.336 | E29: =E26 -> 307 | G29: =G26 -> 384.5968061 | H29: =H26 -> 432.4326139 | I29: =I26 -> 504.6545199 | J29: =J26 -> 571.3826895 | K29: =K26 -> 642.9532464
A30: Cap+/- | C30: =+C44-B44-C25 -> 161.7 | D30: =+D44-C44-D25 -> 0.764 | E30: =+E44-D44-E25 -> -164.8
A31: CCrt+/-
A32: Defi+/- | C32: =C47-B47 -> 1149.3 | D32: =D47-C47 -> -376.5 | E32: =E47-D47 -> -72.8 | G32: 150 | H32: -150
A33: Escpte+/- | G33: 150 | H33: -150
A34: Socfisc+/- | C34: =C50-B50 -> 89.3 | D34: =D50-C50 -> 107.8 | E34: =E50-D50 -> 0 | G34: 50
A35: BFR+/- | C35: =C74 -> -833.8 | D35: =D74 -> -114.1 | E35: =E74 -> -160.1212822 | G35: =G74 -> -445.3948814 | H35: =H74 -> 33.80232077 | I35: =I74 -> -77.83882571 | J35: =J74 -> -81.82367367 | K35: =K74 -> -86.01240937
A36: Immob+/- | C36: =-C54-C55 -> -636.9 | D36: =C55+C54-D18-D55-D54 -> 417.9 | E36: =D55+D54-E18-E55-E54 -> -68 | G36: =-G18 -> -81 | H36: =-H18 -> -81 | I36: =-I18 -> -81 | J36: =-J18 -> -81 | K36: =-K18 -> -81
A37: Autres+/- | C37: =C51-C59 -> 26.4 | D37: =+D51-C51+C59-D59 -> -74.6 | E37: =+E51-D51+D59-E59 -> -2.8
A38: Dispo DP | C38: =B39 -> 0 | D38: =C39 -> 19 | E38: =D39 -> 199.6 | G38: =E60 -> 38 | H38: =G39 -> 246.2019247 | I38: =H39 -> 331.4368594 | J38: =I39 -> 677.2525536 | K38: =J39 -> 1085.811569
A39: Dispo FP | C39: =SUM(C29:C38) -> 19 | D39: =SUM(D29:D38) -> 199.6 | E39: =SUM(E29:E38) -> 38.07871781 | G39: =SUM(G29:G38) -> 246.2019247 | H39: =SUM(H29:H38) -> 331.4368594 | I39: =SUM(I29:I38) -> 677.2525536 | J39: =SUM(J29:J38) -> 1085.811569 | K39: =SUM(K29:K38) -> 1561.752406
A40: check | C40: =C39-C60 -> 2.486899575e-13 | D40: =D39-D60 -> 0.4 | E40: =E39-E60 -> 0.07871780822
A41: =+A1 -> ------------------------------------------------------------------------------------------------------------------------------------------------------------------------------------------------------------------------------------------------------------------------------------------------------------
A42: =A1 -> ------------------------------------------------------------------------------------------------------------------------------------------------------------------------------------------------------------------------------------------------------------------------------------------------------------
A43: BILANS en K€ - Belgique | B43: 2005 | C43: 2006 | D43: 2007 | E43: 2008 | G43: =G28 -> 2009 | H43: =H28 -> 2010 | I43: =I28 -> 2011 | J43: =J28 -> 2012 | K43: =K28 -> 2013
A44: Capropres | C44: 224.7 | D44: ='[1]Data GCO'!F40 -> 377.8 | E44: 450 | G44: =E44+G25 -> 753.5968061 | H44: =G44+H25 -> 1105.02942 | I44: =H44+I25 -> 1528.68394 | J44: =I44+J25 -> 2019.066629 | K44: =J44+K25 -> 2581.019876
A45: Prov | D45: ='[1]Data GCO'!F41 -> 0 | E45: 0 | G45: =E45 -> 0 | H45: =G45 -> 0 | I45: 0 | J45: 0 | K45: 0
A46: CCrt | D46: ='[1]Data GCO'!F42 -> 0 | E46: 0 | G46: =E46 -> 0 | H46: 0 | I46: 0 | J46: 0 | K46: 0
A47: Defi | C47: =848.6+72.7+228 -> 1149.3 | D47: ='[1]Data GCO'!F43 -> 772.8 | E47: 700 | G47: =E47+G32 -> 850 | H47: =G47+H32 -> 700 | I47: 700 | J47: 700 | K47: 700
A48: Escpte+/- | D48: ='[1]Data GCO'!F44 -> 0 | G48: =E48+G33 -> 150 | H48: 0 | I48: 0 | J48: 0 | K48: 0
A49: Defour | C49: 850.2 | D49: ='[1]Data GCO'!F45 -> 929.1 | E49: =E71 -> 953.6609096 | G49: =G71 -> 1330.153288 | H49: =H71 -> 1503.310267 | I49: =I71 -> 1571.552641 | J49: =J71 -> 1642.860976 | K49: =K71 -> 1717.371264
A50: Socfisc | C50: 89.3 | D50: ='[1]Data GCO'!F46 -> 197.1 | E50: =D50 -> 197.1 | G50: =E50+G34 -> 247.1 | H50: =G50+H34 -> 247.1 | I50: =H50+I34 -> 247.1 | J50: =I50+J34 -> 247.1 | K50: =J50+K34 -> 247.1
A51: Autres | C51: 32.4 | D51: ='[1]Data GCO'!F47 -> 8.8 | E51: 6 | G51: =E51 -> 6 | H51: =G51 -> 6 | I51: =H51 -> 6 | J51: =I51 -> 6 | K51: =J51 -> 6
A52: Total | C52: =SUM(C44:C51) -> 2345.9 | D52: =SUM(D44:D51) -> 2285.6 | E52: =SUM(E44:E51) -> 2306.76091 | G52: =SUM(G44:G51) -> 3336.850095 | H52: =SUM(H44:H51) -> 3561.439687 | I52: =SUM(I44:I51) -> 4053.336581 | J52: =SUM(J44:J51) -> 4615.027606 | K52: =SUM(K44:K51) -> 5251.49114
A54: Incorpo | C54: 2.4 | D54: ='[1]Data GCO'!F50 -> 1.7 | E54: 0 | G54: =E54 -> 0 | H54: =F54 -> 0 | I54: =G54 -> 0 | J54: =H54 -> 0 | K54: =I54 -> 0
A55: Corpo | C55: 634.5 | D55: ='[1]Data GCO'!F51 -> 150.3 | E55: 150 | G55: =E55-G36-G18 -> 150 | H55: =G55-H36-H18 -> 150 | I55: =H55-I36-I18 -> 150 | J55: =I55-J36-J18 -> 150 | K55: =J55-K36-K18 -> 150
A56: Fin | D56: ='[1]Data GCO'!F52 -> 0 | E56: 0
A57: Stocks | C57: 462 | D57: ='[1]Data GCO'!F53 -> 608 | E57: =E69 -> 754.2739726 | G57: =G69 -> 1052.051096 | H57: 1099.829836 | I57: 1149.756322 | J57: 1201.925882 | K57: 1256.438007
A58: Clients | C58: 1222 | D58: ='[1]Data GCO'!F54 -> 1269 | E58: =E70 -> 1307.408219 | G58: 1831.518356 | H58: 1923.094274 | I58: 2019.248988 | J58: 2120.211437 | K58: 2226.222009
A59: Autres | C59: 6 | D59: ='[1]Data GCO'!F55 -> 57 | E59: =D59 -> 57 | G59: =E59 -> 57 | H59: =G59 -> 57 | I59: =H59 -> 57 | J59: =I59 -> 57 | K59: =J59 -> 57
A60: Cash | C60: 19 | D60: ='[1]Data GCO'!F56 -> 199.2 | E60: 38 | G60: =G39 -> 246.2019247 | H60: =H39 -> 331.4368594 | I60: =I39 -> 677.2525536 | J60: =J39 -> 1085.811569 | K60: =K39 -> 1561.752406
A61: Total | C61: =SUM(C54:C60) -> 2345.9 | D61: =SUM(D54:D60) -> 2285.2 | E61: =SUM(E54:E60) -> 2306.682192 | G61: =SUM(G54:G60) -> 3336.771377 | H61: =SUM(H54:H60) -> 3561.360969 | I61: =SUM(I54:I60) -> 4053.257863 | J61: =SUM(J54:J60) -> 4614.948888 | K61: =SUM(K54:K60) -> 5251.412422
A62: check | C62: =C61-C52 -> 0 | D62: =D61-D52 -> -0.4 | E62: =E61-E52 -> -0.07871780822 | G62: =G61-G52 -> -0.07871780822 | H62: =H61-H52 -> -0.07871780822 | I62: =I61-I52 -> -0.07871780822 | J62: =J61-J52 -> -0.07871780822 | K62: =K61-K52 -> -0.07871780822
A63: =+A1 -> ------------------------------------------------------------------------------------------------------------------------------------------------------------------------------------------------------------------------------------------------------------------------------------------------------------
A64: =A1 -> ------------------------------------------------------------------------------------------------------------------------------------------------------------------------------------------------------------------------------------------------------------------------------------------------------------
A65: BFR | C65: =C43 -> 2006 | D65: =D43 -> 2007 | E65: =E43 -> 2008 | G65: =G43 -> 2009 | H65: =H43 -> 2010 | I65: =I43 -> 2011 | J65: =J43 -> 2012 | K65: =K43 -> 2013
A66: jours Stocks | C66: =C69/(C5-C9)*365 -> 55.81926514 | D66: =D69/(D7-D11)*365 -> 65.1566599 | E66: 70 | G66: 70 | H66: 70 | I66: 70 | J66: 70 | K66: 70
A67: jours Clients | C67: =(C70/1.196)/C5*365 -> 85.751847 | D67: =(D70/1.196)/D5*365 -> 70.03226548 | E67: 70 | G67: 70 | H67: 70 | I67: 70 | J67: 70 | K67: 70
A68: jours Fourn | C68: =(C71/1.196)/(C5-C9)*365 -> 85.88791503 | D68: =(D71/1.196)/D7*365 -> 73.86906466 | E68: 74 | G68: 74 | H68: 80 | I68: 80 | J68: 80 | K68: 80
A69: Stocks | C69: =C57 -> 462 | D69: =D57 -> 608 | E69: =E66*E7/365 -> 754.2739726 | G69: =G66/365*G7 -> 1052.051096 | H69: =H66/365*H7 -> 1099.829836 | I69: =I66/365*I7 -> 1149.756322 | J69: =J66/365*J7 -> 1201.925882 | K69: =K66/365*K7 -> 1256.438007
A70: Clients | C70: =C58 -> 1222 | D70: =D58 -> 1269 | E70: =E67*E5*1.196/365 -> 1307.408219 | G70: =G67/365*G5*1.196 -> 1831.518356 | H70: =H67/365*H5*1.196 -> 1923.094274 | I70: =I67/365*I5*1.196 -> 2019.248988 | J70: =J67/365*J5*1.196 -> 2120.211437 | K70: =K67/365*K5*1.196 -> 2226.222009
A71: Fournisseurs | C71: =C49 -> 850.2 | D71: =D49 -> 929.1 | E71: =E68*E7/365*1.196 -> 953.6609096 | G71: =G68/365*G7*1.196 -> 1330.153288 | H71: =H68/365*H7*1.196 -> 1503.310267 | I71: =I68/365*I7*1.196 -> 1571.552641 | J71: =J68/365*J7*1.196 -> 1642.860976 | K71: =K68/365*K7*1.196 -> 1717.371264
A72: BFR | C72: =C69+C70-C71 -> 833.8 | D72: =D69+D70-D71 -> 947.9 | E72: =E69+E70-E71 -> 1108.021282 | G72: =G69+G70-G71 -> 1553.416164 | H72: =H69+H70-H71 -> 1519.613843 | I72: =I69+I70-I71 -> 1597.452669 | J72: =J69+J70-J71 -> 1679.276342 | K72: =K69+K70-K71 -> 1765.288752
A73: BFR%CA | D73: =D72/D5 -> 0.1714104882 | E73: =E72/E5 -> 0.1943896986 | G73: =G72/G5 -> 0.1945417863 | H73: =H72/H5 -> 0.1812462466 | I73: =I72/I5 -> 0.1814573151 | J73: =J72/J5 -> 0.1816683836 | K73: =K72/K5 -> 0.1818794521
A74: Delta BFR | C74: =B72-C72 -> -833.8 | D74: =C72-D72 -> -114.1 | E74: =D72-E72 -> -160.1212822 | G74: =E72-G72 -> -445.3948814 | H74: =G72-H72 -> 33.80232077 | I74: =H72-I72 -> -77.83882571 | J74: =I72-J72 -> -81.82367367 | K74: =J72-K72 -> -86.01240937
A75: =A3 -> 0
B76: CALCUL D'UN FREE CASH FLOW NORMATIF : | H76: 2009 | I76: =H76+1 -> 2010 | J76: =I76+1 -> 2011 | K76: =J76+1 -> 2012 | L76: =K76+1 -> 2013
B77: EBIT | H77: =G20 -> 488.1295614 | I77: =H20 -> 574.5262895 | J77: =I20 -> 667.3201789 | K77: =J20 -> 766.914462 | L77: =K20 -> 873.7361886
B78: Frais financiers | H78: 0 | I78: 0 | J78: 0 | K78: 0 | L78: 0
B79: RCAI | H79: =H77 -> 488.1295614 | I79: =I77 -> 574.5262895 | J79: =J77 -> 667.3201789 | K79: =K77 -> 766.914462 | L79: =L77 -> 873.7361886
B80: Impôts | F80: 0.33 | H80: =H79*$F$80 -> 161.0827553 | I80: =I79*$F$80 -> 189.5936755 | J80: =J79*$F$80 -> 220.2156591 | K80: =K79*$F$80 -> 253.0817724 | L80: =L79*$F$80 -> 288.3329423
B81: Résultat net | H81: =H79-H80 -> 327.0468061 | I81: =I79-I80 -> 384.9326139 | J81: =J79-J80 -> 447.1045199 | K81: =K79-K80 -> 513.8326895 | L81: =L79-L80 -> 585.4032464
B82: Amortissements | H82: =G18 -> 81 | I82: =H18 -> 81 | J82: =I18 -> 81 | K82: =J18 -> 81 | L82: =K18 -> 81
B83: Cash Flow normatif | H83: =+H81+H82 -> 408.0468061 | I83: =+I81+I82 -> 465.9326139 | J83: =+J81+J82 -> 528.1045199 | K83: =+K81+K82 -> 594.8326895 | L83: =+L81+L82 -> 666.4032464
B84: Delta BFR | F84: 0.2 | H84: =-$F$84*(G5-E5) -> -457 | I84: =-$F$84*(H5-G5) -> -79.85 | J84: =-$F$84*(I5-H5) -> -83.8425 | K84: =-$F$84*(J5-I5) -> -88.034625 | L84: =-$F$84*(K5-J5) -> -92.43635625
B85: Delta investissements | H85: =-H82 -> -81 | I85: =-I82 -> -81 | J85: =-J82 -> -81 | K85: =-K82 -> -81 | L85: =-L82 -> -81
B86: Free cash flow normatif | H86: =H83+H84+H85 -> -129.9531939 | I86: =I83+I84+I85 -> 305.0826139 | J86: =J83+J84+J85 -> 363.2620199 | K86: =K83+K84+K85 -> 425.7980645 | L86: =L83+L84+L85 -> 492.9668901

Sheet BP1
A1: =REPT("-",300) -> ------------------------------------------------------------------------------------------------------------------------------------------------------------------------------------------------------------------------------------------------------------------------------------------------------------
A2: Comptes et Business Plan de la Société Lanson gastronomie : | I2: BP1
A3: =A1 -> ------------------------------------------------------------------------------------------------------------------------------------------------------------------------------------------------------------------------------------------------------------------------------------------------------------
A4: EXPLOITATION en K€ | C4: 2007 | D4: 2008 | F4: 2009 | G4: =F4+1 -> 2010 | H4: 2011 | I4: 2012 | J4: 2013 | K4: 2014 | L4: 2015 | M4: 2016 | N4: 2017 | O4: 2018 | P4: 2019 | Q4: 2020
A5: CA | C5: 1185 | D5: 1280 | F5: 1280 | G5: 1280 | H5: 1280 | I5: 1280 | J5: 1280
A6: Autres produits | C6: 3 | D6: 2
A7: Coût des ventes | C7: =495+4 -> 499 | D7: =539-2 -> 537 | F7: =+F5-F9 -> 537.6 | G7: =+F7 -> 537.6 | H7: =+G7 -> 537.6 | I7: =+H7 -> 537.6 | J7: =+I7 -> 537.6
A8: MB% | C8: =(C5-C7)/C5 -> 0.5789029536 | D8: =(D5-D7)/D5 -> 0.58046875 | F8: 0.58 | G8: =+G9/G5 -> 0.58 | H8: =+H9/H5 -> 0.58 | I8: =+I9/I5 -> 0.58 | J8: =+J9/J5 -> 0.58
A9: Marge brute | C9: =C5+C6-C7 -> 689 | D9: =D5+D6-D7 -> 745 | F9: =+F8*F5 -> 742.4 | G9: =+G5-G7 -> 742.4 | H9: =+H5-H7 -> 742.4 | I9: =+I5-I7 -> 742.4 | J9: =+J5-J7 -> 742.4
A10: AACE hors loyers Lanson | C10: =131-C11 -> 122 | D10: =136-D11 -> 127 | F10: =136-F11 -> 127 | G10: 127 | H10: 127 | I10: 127 | J10: 127
A11: Loyers Lanson | C11: 9 | D11: 9 | F11: 9 | G11: =F11 -> 9 | H11: =G11 -> 9 | I11: =H11 -> 9 | J11: =I11 -> 9
A12: Salaires et charges employés | C12: =323+144-C13 -> 327 | D12: =373+156-D13 -> 389 | F12: =+D12 -> 389 | G12: =+F12 -> 389 | H12: =+G12 -> 389 | I12: =+H12 -> 389 | J12: =+I12 -> 389
A13: Salaires et charges Dtion | C13: 140 | D13: 140 | F13: 140 | G13: 140 | H13: 140 | I13: 140 | J13: 140
A14: Impôts et Taxes | C14: 31 | D14: 26 | F14: 26 | G14: =+F14/F5*G5 -> 26 | H14: =+G14/G5*H5 -> 26 | I14: =+H14/H5*I5 -> 26 | J14: =+I14/I5*J5 -> 26
A15: Autres charges
A16: Charges d'exploitation | C16: =SUM(C10:C15) -> 629 | D16: =SUM(D10:D15) -> 691 | F16: =SUM(F10:F15) -> 691 | G16: =SUM(G10:G15) -> 691 | H16: =SUM(H10:H15) -> 691 | I16: =SUM(I10:I15) -> 691 | J16: =SUM(J10:J15) -> 691
A17: Amortissements | C17: 47 | D17: 43 | F17: 43 | G17: 43 | H17: 43 | I17: 43 | J17: 43
A18: Provisions
A19: EBIT | C19: =C9-C16-C17-C18 -> 13 | D19: =D9-D16-D17-D18 -> 11 | F19: =F9-F16-F17-F18 -> 8.4 | G19: =G9-G16-G17-G18 -> 8.4 | H19: =H9-H16-H17-H18 -> 8.4 | I19: =I9-I16-I17-I18 -> 8.4 | J19: =J9-J16-J17-J18 -> 8.4
A20: Résultat financier | B20: 0.07 | C20: -2.5 | D20: -2.5 | F20: =-$B$20*D44 -> -2.59 | G20: =-$B$20*F44 -> 0 | H20: =-$B$20*G44 -> 0 | I20: =-$B$20*H44 -> 0 | J20: =-$B$20*I44 -> 0
A21: Résultat courant avt impôts | C21: =C19+C20 -> 10.5 | D21: =D19+D20 -> 8.5 | F21: =F19+F20 -> 5.81 | G21: =G19+G20 -> 8.4 | H21: =H19+H20 -> 8.4 | I21: =I19+I20 -> 8.4 | J21: =J19+J20 -> 8.4
A22: Exceptionnels
A23: IS | C23: -1.4 | D23: -1.2 | F23: =D23/D21*F21 -> -0.8202352941 | G23: -1 | H23: -1 | I23: -1 | J23: -1
A24: Résultat net | C24: =C21+C22+C23 -> 9.1 | D24: =D21+D22+D23 -> 7.3 | F24: =F21+F22+F23 -> 4.989764706 | G24: =G21+G22+G23 -> 7.4 | H24: =H21+H22+H23 -> 7.4 | I24: =I21+I22+I23 -> 7.4 | J24: =J21+J22+J23 -> 7.4
A25: Marge brute Autofincmt | C25: =C24+C17 -> 56.1 | D25: =D24+D17 -> 50.3 | F25: =F24+F17 -> 47.98976471 | G25: =G24+G17 -> 50.4 | H25: =H24+H17 -> 50.4 | I25: =I24+I17 -> 50.4 | J25: =J24+J17 -> 50.4
A26: =A1 -> ------------------------------------------------------------------------------------------------------------------------------------------------------------------------------------------------------------------------------------------------------------------------------------------------------------
A27: FINANCEMENT en K€ | C27: =C4 -> 2007 | D27: =D4 -> 2008 | F27: =F4 -> 2009 | G27: 2010 | H27: 2011 | I27: 2012 | J27: 2013 | K27: 2014 | L27: 2015 | M27: 2016 | N27: 2017 | O27: 2018 | P27: 2019
A28: Marge Brute Autofinancement | D28: =D25 -> 50.3 | F28: =F25 -> 47.98976471 | G28: =G25 -> 50.4 | H28: =H25 -> 50.4 | I28: =I25 -> 50.4 | J28: =J25 -> 50.4
A29: Capital +/- | C29: =C41 -> 105 | D29: =+D41-C41-D24 -> -0.3 | F29: -40 | G29: -15
A30: Cptes crts +/-
A31: Dettes financières +/- | C31: =C44 -> 69 | D31: =D44-C44 -> -32 | F31: -37
A32: Social Fiscal +/- | C32: =C46 -> 57 | D32: =D46-C46 -> -3
A33: BFR+/- | C33: =C66 -> -15 | D33: =D66 -> -1 | F33: =F66 -> -1 | G33: =G66 -> 0 | H33: =H66 -> 0 | I33: =I66 -> 0 | J33: =J66 -> 0
A34: Immobilisations +/- | C34: =-C50-C51-C52 -> -140 | D34: =C51+C50-D17-D51-D50 -> -38 | G34: -20 | H34: =-H17 -> -43 | I34: =-I17 -> -43 | J34: =-J17 -> -43
A35: Autres+/- | C35: =C47-C55 -> -16 | D35: =+D47-C47+C55-D55 -> -5
A36: Dispo Début Période | C36: =B37 -> 0 | D36: =C37 -> 60 | F36: =D37 -> 31 | G36: =F37 -> 0.9897647059 | H36: =G37 -> 16.38976471 | I36: =H37 -> 23.78976471 | J36: =I37 -> 31.18976471
A37: Dispo Fin Période | C37: =SUM(C28:C36) -> 60 | D37: =SUM(D28:D36) -> 31 | F37: =SUM(F28:F36) -> 0.9897647059 | G37: =SUM(G28:G36) -> 16.38976471 | H37: =SUM(H28:H36) -> 23.78976471 | I37: =SUM(I28:I36) -> 31.18976471 | J37: =SUM(J28:J36) -> 38.58976471
A38: contrôle | C38: =C37-C56 -> 0 | D38: =D37-D56 -> 0 | F38: =F37-F56 -> 0 | G38: =G37-G56 -> 0 | H38: =H37-H56 -> 0 | I38: =I37-I56 -> 0 | J38: =J37-J56 -> 0
A39: =A1 -> ------------------------------------------------------------------------------------------------------------------------------------------------------------------------------------------------------------------------------------------------------------------------------------------------------------
A40: BILANS en K€ | C40: =C27 -> 2007 | D40: =D27 -> 2008 | F40: =F27 -> 2009 | G40: 2010 | H40: 2011 | I40: 2012 | J40: 2013 | K40: 2014 | L40: 2015 | M40: 2016 | N40: 2017 | O40: 2018 | P40: 2019
A41: Capitaux propres | C41: 105 | D41: 112 | F41: =D41+F24+F29 -> 76.98976471 | G41: =F41+G24+G29 -> 69.38976471 | H41: =G41+H24+H29 -> 76.78976471 | I41: =H41+I24+I29 -> 84.18976471 | J41: =I41+J24+J29 -> 91.58976471
A42: Provisions
A43: Cptes courants
A44: Dettes financières | C44: 69 | D44: 37 | F44: =D44+F31 -> 0 | G44: =F44+G31 -> 0 | H44: =G44+H31 -> 0 | I44: =H44+I31 -> 0 | J44: =I44+J31 -> 0
A45: Dettes Fournisseurs
A46: Social Fiscal | C46: 57 | D46: 54 | F46: =D46+F32 -> 54 | G46: =F46+G32 -> 54 | H46: =G46+H32 -> 54 | I46: =H46+I32 -> 54 | J46: =I46+J32 -> 54
A47: Autres
A48: Total | C48: =SUM(C41:C47) -> 231 | D48: =SUM(D41:D47) -> 203 | F48: =SUM(F41:F47) -> 130.9897647 | G48: =SUM(G41:G47) -> 123.3897647 | H48: =SUM(H41:H47) -> 130.7897647 | I48: =SUM(I41:I47) -> 138.1897647 | J48: =SUM(J41:J47) -> 145.5897647
A50: Actifs incorporels | C50: 6 | D50: 6 | F50: =D50 -> 6 | G50: =F50 -> 6 | H50: =G50 -> 6 | I50: =H50 -> 6 | J50: =I50 -> 6
A51: Actifs corporels | C51: =24+107 -> 131 | D51: =25+101 -> 126 | F51: =D51-F34-F17 -> 83 | G51: =F51-G34-G17 -> 60 | H51: =G51-H34-H17 -> 60 | I51: =H51-I34-I17 -> 60 | J51: =I51-J34-J17 -> 60
A52: Actifs financiers | C52: 3 | D52: 3 | F52: =D52 -> 3 | G52: =F52 -> 3 | H52: =G52 -> 3 | I52: =H52 -> 3 | J52: =I52 -> 3
A53: Stocks | C53: 15 | D53: 16 | F53: =F61 -> 17 | G53: 17 | H53: 17 | I53: 17 | J53: 17
A54: Clients | F54: 0 | G54: 0 | H54: 0 | I54: 0 | J54: 0
A55: Autres | C55: =7+1+8 -> 16 | D55: =10+1+10 -> 21 | F55: =D55-F35 -> 21 | G55: =F55-G35 -> 21 | H55: =G55-H35 -> 21 | I55: =H55-I35 -> 21 | J55: =I55-J35 -> 21
A56: Disponibilités | C56: 60 | D56: 31 | F56: =F37 -> 0.9897647059 | G56: =G37 -> 16.38976471 | H56: =H37 -> 23.78976471 | I56: =I37 -> 31.18976471 | J56: =J37 -> 38.58976471
A57: Total | C57: =SUM(C50:C56) -> 231 | D57: =SUM(D50:D56) -> 203 | F57: =SUM(F50:F56) -> 130.9897647 | G57: =SUM(G50:G56) -> 123.3897647 | H57: =SUM(H50:H56) -> 130.7897647 | I57: =SUM(I50:I56) -> 138.1897647 | J57: =SUM(J50:J56) -> 145.5897647
A58: contrôle | C58: =+C57-C48 -> 0 | D58: =+D57-D48 -> 0 | F58: =+F57-F48 -> 0 | G58: =+G57-G48 -> 0 | H58: =+H57-H48 -> 0 | I58: =+I57-I48 -> 0 | J58: =+J57-J48 -> 0
A59: =A1 -> ------------------------------------------------------------------------------------------------------------------------------------------------------------------------------------------------------------------------------------------------------------------------------------------------------------
A60: BFR | C60: =+C40 -> 2007 | D60: =+D40 -> 2008 | F60: =+F40 -> 2009 | G60: 2010 | H60: 2011 | I60: 2012 | J60: 2013 | K60: 2014 | L60: 2015 | M60: 2016 | N60: 2017 | O60: 2018 | P60: 2019
A61: Stocks | C61: =+C53 -> 15 | D61: =+D53 -> 16 | F61: 17 | G61: 17 | H61: 17 | I61: 17 | J61: 17
A62: Clients | C62: =+C54 -> 0 | D62: =+D54 -> 0 | F62: 0 | G62: 0 | H62: 0 | I62: 0 | J62: 0
A63: Fournisseurs | C63: =+C45 -> 0 | D63: =+D45 -> 0 | F63: 0 | G63: 0 | H63: 0 | I63: 0 | J63: 0
A64: BFR | C64: =+C61+C62-C63 -> 15 | D64: =+D61+D62-D63 -> 16 | F64: =+F61+F62-F63 -> 17 | G64: =+G61+G62-G63 -> 17 | H64: =+H61+H62-H63 -> 17 | I64: =+I61+I62-I63 -> 17 | J64: =+J61+J62-J63 -> 17
A65: BFR%CA | C65: =+C64/C5 -> 0.01265822785 | D65: =+D64/D5 -> 0.0125 | F65: =+F64/F5 -> 0.01328125 | G65: =+G64/G5 -> 0.01328125 | H65: =+H64/H5 -> 0.01328125 | I65: =+I64/I5 -> 0.01328125 | J65: =+J64/J5 -> 0.01328125
A66: Delta BFR | C66: =-C64 -> -15 | D66: =C64-D64 -> -1 | F66: =D64-F64 -> -1 | G66: =F64-G64 -> 0 | H66: =G64-H64 -> 0 | I66: =H64-I64 -> 0 | J66: =I64-J64 -> 0
A67: =A1 -> ------------------------------------------------------------------------------------------------------------------------------------------------------------------------------------------------------------------------------------------------------------------------------------------------------------
A68: =A1 -> ------------------------------------------------------------------------------------------------------------------------------------------------------------------------------------------------------------------------------------------------------------------------------------------------------------
A69: Comptes et Business Plan du Foyer Lanson : | I69: =I2 -> BP1 | J69: =J2 -> 0
A70: =A1 -> ------------------------------------------------------------------------------------------------------------------------------------------------------------------------------------------------------------------------------------------------------------------------------------------------------------
A71: Foyer Lanson | C71: =C60 -> 2007 | D71: =D60 -> 2008 | F71: =F60 -> 2009 | G71: 2010 | H71: 2011 | I71: 2012 | J71: 2013 | K71: 2014 | L71: 2015 | M71: 2016 | N71: 2017 | O71: 2018 | P71: 2019
A72: Salaires puis Retraites | C72: =C13/3*2*0.8 -> 74.66666667 | D72: =D13/3*2*0.8 -> 74.66666667 | F72: =F13/3*2*0.8 -> 74.66666667 | G72: =G13/3*2*0.8 -> 74.66666667 | H72: 25 | I72: =H72 -> 25 | J72: 25 | K72: 25 | L72: 25 | M72: 25 | N72: 25 | O72: 25 | P72: 25
A73: Dividendes | D73: =-D29 -> 0.3 | F73: =-F29 -> 40 | G73: 15 | H73: 0 | I73: 0 | J73: 0 | K73: 0 | L73: 0 | M73: 0 | N73: 0 | O73: 0 | P73: 0
A74: +V mobilières
A75: Revenus valeurs mob | B75: 0.04 | F75: =$B$75*(D105+D106+D108) -> 11.68 | G75: =$B$75*(F105+F106+F108) -> 14.7472 | H75: 16.937088 | I75: 36.81457152 | J75: 27.68715438 | K75: 28.08715438 | L75: 28.48715438 | M75: 28.96715438 | N75: 29.48715438 | O75: 30.04715438 | P75: 30.64715438
A76: Loyers | C76: =C11 -> 9 | D76: =D11 -> 9 | F76: =F11 -> 9 | G76: 9 | H76: 0 | I76: 0 | J76: 0 | K76: 0 | L76: 0 | M76: 0 | N76: 0 | O76: 0 | P76: 0
A77: Charges foncières | F77: 3 | G77: 3 | H77: 0 | I77: 0 | J77: 0 | K77: 0 | L77: 0 | M77: 0 | N77: 0 | O77: 0 | P77: 0
A78: Charges quotidiennes | F78: 40 | G78: 40 | H78: 40 | I78: 40 | J78: 40 | K78: 40 | L78: 40 | M78: 40 | N78: 40 | O78: 40 | P78: 40
A79: I/dividendes | F79: =IF((0.6*F73-4)*$B$81<0,0,(0.6*F73-4)*$B$81) -> 6 | G79: 1.5 | H79: 0 | I79: 0 | J79: 0 | K79: 0 | L79: 0 | M79: 0 | N79: 0 | O79: 0 | P79: 0
A80: I/+V mob
A81: Impôt progressif | B81: 0.3 | C81: 0.14 | F81: =F72*0.9*$B$81+(F76-F77)*$B$81-11 -> 10.96 | G81: =G72*0.9*$B$81+(G76-G77)*$B$81-11 -> 10.96 | H81: =IF(H72*0.9*$C$81+(H76-H77)*$C$81-2.6<0,0,H72*0.9*$C$81+(H76-H77)*$C$81-2.6) -> 0.55 | I81: =IF(I72*0.9*$C$81+(I76-I77)*$C$81-2.6<0,0,I72*0.9*$C$81+(I76-I77)*$C$81-2.6) -> 0.55 | J81: 0.55 | K81: 0.55 | L81: 0.55 | M81: 0.55 | N81: 0.55 | O81: 0.55 | P81: 0.55
A82: Total IRPP | F82: =+F81+F79+F80 -> 16.96 | G82: =+G81+G79+G80 -> 12.46 | H82: 0.55 | I82: 0.55 | J82: 0.55 | K82: 0.55 | L82: 0.55 | M82: 0.55 | N82: 0.55 | O82: 0.55 | P82: 0.55
A83: ISF | I83: 1 | J83: 1 | K83: 1 | L83: 1 | M83: 1 | N83: 1 | O83: 1 | P83: 1
A84: Dépenses exceptionnelles
A85: Disponible | F85: =+F72+F73+F74+F75+F76-F77-F78-F82-F83-F84 -> 75.38666667 | G85: =+G72+G73+G74+G75+G76-G77-G78-G82-G83-G84 -> 57.95386667 | H85: 1.387088 | I85: 20.26457152 | J85: 11.13715438 | K85: 11.53715438 | L85: 11.93715438 | M85: 12.41715438 | N85: 12.93715438 | O85: 13.49715438 | P85: 14.09715438
A86: =A1 -> ------------------------------------------------------------------------------------------------------------------------------------------------------------------------------------------------------------------------------------------------------------------------------------------------------------
A87: Financement foyer Lanson | C87: =C71 -> 2007 | D87: =D71 -> 2008 | F87: =F71 -> 2009 | G87: 2010 | H87: 2011 | I87: 2012 | J87: 2013 | K87: 2014 | L87: 2015 | M87: 2016 | N87: 2017 | O87: 2018 | P87: 2019
A88: MBA | C88: =C85 -> 0 | D88: =D85 -> 0 | F88: =F85 -> 75.38666667 | G88: 57.95386667 | H88: 1.387088 | I88: 20.26457152 | J88: 11.13715438 | K88: 11.53715438 | L88: 11.93715438 | M88: 12.41715438 | N88: 12.93715438 | O88: 13.49715438 | P88: 14.09715438
A89: Immobilier privé +/- | H89: 350 | I89: -250
A90: Immobilier de rapport
A91: Valeurs mobilières +/-
A92: Assurance vie/capitalisation | F92: -65 | G92: -40 | H92: -480 | I92: 265
A93: Participations Lanson Gastro | H93: 149
A94: Endettement
A95: Capitalisation cachée | F95: =-F75 -> -11.68 | G95: =-G75 -> -14.7472 | H95: =-H75 -> -16.937088 | I95: =-I75 -> -36.81457152 | J95: -10 | K95: -10 | L95: -12 | M95: -13 | N95: -14 | O95: -15 | P95: -16
A96: Liquidités DP | F96: =D97 -> 5 | G96: =F97 -> 3.706666667 | H96: 6.913333333 | I96: 10.36333333 | J96: 8.813333333 | K96: 9.950487714 | L96: 11.48764209 | M96: 11.42479648 | N96: 10.84195086 | O96: 9.779105237 | P96: 8.276259618
A97: Liquidités FP | D97: 5 | F97: =SUM(F88:F96) -> 3.706666667 | G97: 6.913333333 | H97: 10.36333333 | I97: 8.813333333 | J97: 9.950487714 | K97: 11.48764209 | L97: 11.42479648 | M97: 10.84195086 | N97: 9.779105237 | O97: 8.276259618 | P97: 6.373413999
A98: =A1 -> ------------------------------------------------------------------------------------------------------------------------------------------------------------------------------------------------------------------------------------------------------------------------------------------------------------
A99: Bilan foyer Lanson | C99: =C87 -> 2007 | D99: =D87 -> 2008 | F99: =F87 -> 2009 | G99: 2010 | H99: 2011 | I99: 2012 | J99: 2013 | K99: 2014 | L99: 2015 | M99: 2016 | N99: 2017 | O99: 2018 | P99: 2019
A100: Capitaux propres | D100: 796 | F100: =D100+F85 -> 871.3866667 | G100: =F100+G85 -> 929.3405333 | H100: 930.7276213 | I100: 950.9921929 | J100: 962.1293472 | K100: 973.6665016 | L100: 985.603656 | M100: 998.0208104 | N100: 1010.957965 | O100: 1024.455119 | P100: 1038.552274
A101: Endettement | D101: 0
A103: Immobilier privé +/- | D103: 350 | F103: =D103-F89 -> 350 | G103: =F103-G89 -> 350 | H103: 0 | I103: 250 | J103: 250 | K103: 250 | L103: 250 | M103: 250 | N103: 250 | O103: 250 | P103: 250
A104: Immobilier de rapport | D104: 0 | F104: =D104-F90 -> 0 | G104: =F104-G90 -> 0 | H104: 0 | I104: 0 | J104: 0 | K104: 0 | L104: 0 | M104: 0 | N104: 0 | O104: 0 | P104: 0
A105: Valeurs mobilières +/- | D105: 40 | F105: =D105-F91 -> 40 | G105: =F105-G91 -> 40 | H105: 40 | I105: 40 | J105: 40 | K105: 40 | L105: 40 | M105: 40 | N105: 40 | O105: 40 | P105: 40
A106: Assurance vie/capitalisation | D106: 252 | F106: =D106-F92 -> 317 | G106: =F106-G92 -> 357 | H106: 837 | I106: 572 | J106: 572 | K106: 572 | L106: 572 | M106: 572 | N106: 572 | O106: 572 | P106: 572
A107: Participations | D107: 149 | F107: =D107-F93 -> 149 | G107: =F107-G93 -> 149 | H107: 0 | I107: 0 | J107: 0 | K107: 0 | L107: 0 | M107: 0 | N107: 0 | O107: 0 | P107: 0
A108: Capitalisation cachée | F108: =D108-F95 -> 11.68 | G108: =F108-G95 -> 26.4272 | H108: 43.364288 | I108: 80.17885952 | J108: 90.17885952 | K108: 100.1788595 | L108: 112.1788595 | M108: 125.1788595 | N108: 139.1788595 | O108: 154.1788595 | P108: 170.1788595
A109: Liquidités | D109: =D97 -> 5 | F109: =F97 -> 3.706666667 | G109: 6.913333333 | H109: 10.36333333 | I109: 8.813333333 | J109: 9.950487714 | K109: 11.48764209 | L109: 11.42479648 | M109: 10.84195086 | N109: 9.779105237 | O109: 8.276259618 | P109: 6.373413999
A110: total | D110: =SUM(D103:D109) -> 796 | F110: =SUM(F103:F109) -> 871.3866667 | G110: 929.3405333 | H110: 930.7276213 | I110: 950.9921929 | J110: 962.1293472 | K110: 973.6665016 | L110: 985.603656 | M110: 998.0208104 | N110: 1010.957965 | O110: 1024.455119 | P110: 1038.552274
A111: check | D111: =D110-SUM(D100:D101) -> 0 | F111: =F110-SUM(F100:F101) -> 0 | G111: 0 | H111: 0 | I111: 0 | J111: 0 | K111: 0 | L111: 0 | M111: 0 | N111: 0 | O111: 0 | P111: 0
A112: =A1 -> ------------------------------------------------------------------------------------------------------------------------------------------------------------------------------------------------------------------------------------------------------------------------------------------------------------
A113: =A1 -> ------------------------------------------------------------------------------------------------------------------------------------------------------------------------------------------------------------------------------------------------------------------------------------------------------------
A114: Comptes et Business Plan de la SCI Lanson : | I114: =I69 -> BP1 | J114: =J69 -> 0
A115: =A1 -> ------------------------------------------------------------------------------------------------------------------------------------------------------------------------------------------------------------------------------------------------------------------------------------------------------------
A116: SCI Lanson | C116: =C99 -> 2007 | D116: =D99 -> 2008 | F116: 2009 | G116: 2010 | H116: 2011 | I116: 2012 | J116: 2013 | K116: 2014 | L116: 2015 | M116: 2016 | N116: 2017 | O116: 2018 | P116: 2019
A117: Revenus locatifs
A118: Charges foncières
A119: Amortissements
A120: Résultat d'exploitation
A121: Frais financiers
A122: Impôt
A123: Résultat net
A124: =A1 -> ------------------------------------------------------------------------------------------------------------------------------------------------------------------------------------------------------------------------------------------------------------------------------------------------------------
A125: Financement SCI Lanson | C125: =C116 -> 2007 | D125: =D116 -> 2008 | F125: 2009 | G125: 2010 | H125: 2011 | I125: 2012 | J125: 2013 | K125: 2014 | L125: 2015 | M125: 2016 | N125: 2017 | O125: 2018 | P125: 2019
A126: MBA
A127: Cap+/-
A128: CCrt+/-
A129: Defi+/-
A130: Immob+/-
A131: Dispo DP
A132: Dispo FP
A133: check
A134: =A1 -> ------------------------------------------------------------------------------------------------------------------------------------------------------------------------------------------------------------------------------------------------------------------------------------------------------------
A135: Bilan SCI Lanson | C135: =C125 -> 2007 | D135: =D125 -> 2008 | F135: 2009 | G135: 2010 | H135: 2011 | I135: 2012 | J135: 2013 | K135: 2014 | L135: 2015 | M135: 2016 | N135: 2017 | O135: 2018 | P135: 2019
A136: Capropres
A137: CCrt
A138: Defi
A139: Total
A141: Immobilisations
A142: Autres
A143: Cash
A144: Total
A145: check
A146: =A1 -> ------------------------------------------------------------------------------------------------------------------------------------------------------------------------------------------------------------------------------------------------------------------------------------------------------------

Sheet BP2
A1: =REPT("-",300) -> ------------------------------------------------------------------------------------------------------------------------------------------------------------------------------------------------------------------------------------------------------------------------------------------------------------
A2: Comptes et Business Plan de la Société Lanson gastronomie : | I2: BP2 | J2: JSC le 05/06/2009
A3: =A1 -> ------------------------------------------------------------------------------------------------------------------------------------------------------------------------------------------------------------------------------------------------------------------------------------------------------------
A4: EXPLOITATION en K€ | C4: 2007 | D4: 2008 | F4: 2009 | G4: =F4+1 -> 2010 | H4: 2011 | I4: 2012 | J4: 2013 | K4: 2014 | L4: 2015 | M4: 2016 | N4: 2017 | O4: 2018 | P4: 2019 | Q4: 2020
A5: CA | C5: 1185 | D5: 1280 | F5: 1380 | G5: 1380 | H5: 1380 | I5: 1380 | J5: 1380
A6: Autres produits | C6: 3 | D6: 2
A7: Coût des ventes | C7: =495+4 -> 499 | D7: =539-2 -> 537 | F7: =D7 -> 537 | G7: =+F7 -> 537 | H7: =+G7 -> 537 | I7: =+H7 -> 537 | J7: =+I7 -> 537
A8: MB% | C8: =(C5-C7)/C5 -> 0.5789029536 | D8: =(D5-D7)/D5 -> 0.58046875 | F8: =+F9/F5 -> 0.6108695652 | G8: =+G9/G5 -> 0.6108695652 | H8: =+H9/H5 -> 0.6108695652 | I8: =+I9/I5 -> 0.6108695652 | J8: =+J9/J5 -> 0.6108695652
A9: Marge brute | C9: =C5+C6-C7 -> 689 | D9: =D5+D6-D7 -> 745 | F9: =F5-F7 -> 843 | G9: =+G5-G7 -> 843 | H9: =+H5-H7 -> 843 | I9: =+I5-I7 -> 843 | J9: =+J5-J7 -> 843
A10: AACE hors loyers Lanson | C10: =131-C11 -> 122 | D10: =136-D11 -> 127 | F10: =136-F11 -> 127 | G10: 136 | H10: 136 | I10: 136 | J10: 136
A11: Loyers Lanson | C11: 9 | D11: 9 | F11: 9 | G11: 35 | H11: =G11 -> 35 | I11: =H11 -> 35 | J11: =I11 -> 35
A12: Salaires et charges employés | C12: =323+144-C13 -> 317 | D12: =373+156-D13 -> 379 | F12: =+D12 -> 379 | G12: =+F12 -> 379 | H12: =+G12 -> 379 | I12: =+H12 -> 379 | J12: =+I12 -> 379
A13: Salaires et charges Dtion | C13: 150 | D13: 150 | F13: 150 | G13: 150 | H13: 150 | I13: 150 | J13: 150
A14: Impôts et Taxes | C14: 31 | D14: 26 | F14: 30 | G14: =+F14/F5*G5 -> 30 | H14: =+G14/G5*H5 -> 30 | I14: =+H14/H5*I5 -> 30 | J14: =+I14/I5*J5 -> 30
A15: Autres charges
A16: Charges d'exploitation | C16: =SUM(C10:C15) -> 629 | D16: =SUM(D10:D15) -> 691 | F16: =SUM(F10:F15) -> 695 | G16: =SUM(G10:G15) -> 730 | H16: =SUM(H10:H15) -> 730 | I16: =SUM(I10:I15) -> 730 | J16: =SUM(J10:J15) -> 730
A17: Amortissements | C17: 47 | D17: 43 | F17: 40 | G17: 40 | H17: 40 | I17: 40 | J17: 40
A18: Provisions
A19: EBIT | C19: =C9-C16-C17-C18 -> 13 | D19: =D9-D16-D17-D18 -> 11 | F19: =F9-F16-F17-F18 -> 108 | G19: =G9-G16-G17-G18 -> 73 | H19: =H9-H16-H17-H18 -> 73 | I19: =I9-I16-I17-I18 -> 73 | J19: =J9-J16-J17-J18 -> 73
A20: Résultat financier | B20: 0.07 | C20: -2.5 | D20: -2.5 | F20: =-$B$20*D44 -> -2.59 | G20: =-$B$20*F44 -> 0 | H20: =-$B$20*G44 -> 0 | I20: =-$B$20*H44 -> 0 | J20: =-$B$20*I44 -> 0
A21: Résultat courant avt impôts | C21: =C19+C20 -> 10.5 | D21: =D19+D20 -> 8.5 | F21: =F19+F20 -> 105.41 | G21: =G19+G20 -> 73 | H21: =H19+H20 -> 73 | I21: =I19+I20 -> 73 | J21: =J19+J20 -> 73
A22: Exceptionnels
A23: IS | B23: 0.33 | C23: -1.4 | D23: -1.2 | F23: =D23/D21*F21 -> -14.88141176 | G23: =-$B$23*G21 -> -24.09 | H23: =-$B$23*H21 -> -24.09 | I23: =-$B$23*I21 -> -24.09 | J23: =-$B$23*J21 -> -24.09
A24: Résultat net | C24: =C21+C22+C23 -> 9.1 | D24: =D21+D22+D23 -> 7.3 | F24: =F21+F22+F23 -> 90.52858824 | G24: =G21+G22+G23 -> 48.91 | H24: =H21+H22+H23 -> 48.91 | I24: =I21+I22+I23 -> 48.91 | J24: =J21+J22+J23 -> 48.91
A25: Marge brute Autofincmt | C25: =C24+C17 -> 56.1 | D25: =D24+D17 -> 50.3 | F25: =F24+F17 -> 130.5285882 | G25: =G24+G17 -> 88.91 | H25: =H24+H17 -> 88.91 | I25: =I24+I17 -> 88.91 | J25: =J24+J17 -> 88.91
A26: =A1 -> ------------------------------------------------------------------------------------------------------------------------------------------------------------------------------------------------------------------------------------------------------------------------------------------------------------
A27: FINANCEMENT en K€ | C27: =C4 -> 2007 | D27: =D4 -> 2008 | F27: =F4 -> 2009 | G27: 2010 | H27: 2011 | I27: 2012 | J27: 2013 | K27: 2014 | L27: 2015 | M27: 2016 | N27: 2017 | O27: 2018 | P27: 2019
A28: Marge Brute Autofinancement | D28: =D25 -> 50.3 | F28: =F25 -> 130.5285882 | G28: =G25 -> 88.91 | H28: =H25 -> 88.91 | I28: =I25 -> 88.91 | J28: =J25 -> 88.91
A29: Capital +/- | C29: =C41 -> 105 | D29: =+D41-C41-D24 -> -0.3 | F29: -80 | G29: -52 | H29: -53
A30: Cptes crts +/-
A31: Dettes financières +/- | C31: =C44 -> 69 | D31: =D44-C44 -> -32 | F31: -37
A32: Social Fiscal +/- | C32: =C46 -> 57 | D32: =D46-C46 -> -3
A33: BFR+/- | C33: =C66 -> -15 | D33: =D66 -> -1 | F33: =F66 -> -1 | G33: =G66 -> 0 | H33: =H66 -> 0 | I33: =I66 -> 0 | J33: =J66 -> 0
A34: Immobilisations +/- | C34: =-C50-C51-C52 -> -140 | D34: =C51+C50-D17-D51-D50 -> -38 | F34: -40 | G34: =-G17 -> -40 | H34: =-H17 -> -40 | I34: =-I17 -> -40 | J34: =-J17 -> -40
A35: Autres+/- | C35: =C47-C55 -> -16 | D35: =+D47-C47+C55-D55 -> -5
A36: Dispo Début Période | C36: =B37 -> 0 | D36: =C37 -> 60 | F36: =D37 -> 31 | G36: =F37 -> 3.528588235 | H36: =G37 -> 0.4385882353 | I36: =H37 -> -3.651411765 | J36: =I37 -> 45.25858824
A37: Dispo Fin Période | C37: =SUM(C28:C36) -> 60 | D37: =SUM(D28:D36) -> 31 | F37: =SUM(F28:F36) -> 3.528588235 | G37: =SUM(G28:G36) -> 0.4385882353 | H37: =SUM(H28:H36) -> -3.651411765 | I37: =SUM(I28:I36) -> 45.25858824 | J37: =SUM(J28:J36) -> 94.16858824
A38: contrôle | C38: =C37-C56 -> 0 | D38: =D37-D56 -> 0 | F38: =F37-F56 -> 0 | G38: =G37-G56 -> 0 | H38: =H37-H56 -> 0 | I38: =I37-I56 -> 0 | J38: =J37-J56 -> 0
A39: =A1 -> ------------------------------------------------------------------------------------------------------------------------------------------------------------------------------------------------------------------------------------------------------------------------------------------------------------
A40: BILANS en K€ | C40: =C27 -> 2007 | D40: =D27 -> 2008 | F40: =F27 -> 2009 | G40: 2010 | H40: 2011 | I40: 2012 | J40: 2013 | K40: 2014 | L40: 2015 | M40: 2016 | N40: 2017 | O40: 2018 | P40: 2019
A41: Capitaux propres | C41: 105 | D41: 112 | F41: =D41+F24+F29 -> 122.5285882 | G41: =F41+G24+G29 -> 119.4385882 | H41: =G41+H24+H29 -> 115.3485882 | I41: =H41+I24+I29 -> 164.2585882 | J41: =I41+J24+J29 -> 213.1685882
A42: Provisions
A43: Cptes courants
A44: Dettes financières | C44: 69 | D44: 37 | F44: =D44+F31 -> 0 | G44: =F44+G31 -> 0 | H44: =G44+H31 -> 0 | I44: =H44+I31 -> 0 | J44: =I44+J31 -> 0
A45: Dettes Fournisseurs
A46: Social Fiscal | C46: 57 | D46: 54 | F46: =D46+F32 -> 54 | G46: =F46+G32 -> 54 | H46: =G46+H32 -> 54 | I46: =H46+I32 -> 54 | J46: =I46+J32 -> 54
A47: Autres
A48: Total | C48: =SUM(C41:C47) -> 231 | D48: =SUM(D41:D47) -> 203 | F48: =SUM(F41:F47) -> 176.5285882 | G48: =SUM(G41:G47) -> 173.4385882 | H48: =SUM(H41:H47) -> 169.3485882 | I48: =SUM(I41:I47) -> 218.2585882 | J48: =SUM(J41:J47) -> 267.1685882
A50: Actifs incorporels | C50: 6 | D50: 6 | F50: =D50 -> 6 | G50: =F50 -> 6 | H50: =G50 -> 6 | I50: =H50 -> 6 | J50: =I50 -> 6
A51: Actifs corporels | C51: =24+107 -> 131 | D51: =25+101 -> 126 | F51: =D51-F34-F17 -> 126 | G51: =F51-G34-G17 -> 126 | H51: =G51-H34-H17 -> 126 | I51: =H51-I34-I17 -> 126 | J51: =I51-J34-J17 -> 126
A52: Actifs financiers | C52: 3 | D52: 3 | F52: =D52 -> 3 | G52: =F52 -> 3 | H52: =G52 -> 3 | I52: =H52 -> 3 | J52: =I52 -> 3
A53: Stocks | C53: 15 | D53: 16 | F53: =F61 -> 17 | G53: 17 | H53: 17 | I53: 17 | J53: 17
A54: Clients | F54: 0 | G54: 0 | H54: 0 | I54: 0 | J54: 0
A55: Autres | C55: =7+1+8 -> 16 | D55: =10+1+10 -> 21 | F55: =D55-F35 -> 21 | G55: =F55-G35 -> 21 | H55: =G55-H35 -> 21 | I55: =H55-I35 -> 21 | J55: =I55-J35 -> 21
A56: Disponibilités | C56: 60 | D56: 31 | F56: =F37 -> 3.528588235 | G56: =G37 -> 0.4385882353 | H56: =H37 -> -3.651411765 | I56: =I37 -> 45.25858824 | J56: =J37 -> 94.16858824
A57: Total | C57: =SUM(C50:C56) -> 231 | D57: =SUM(D50:D56) -> 203 | F57: =SUM(F50:F56) -> 176.5285882 | G57: =SUM(G50:G56) -> 173.4385882 | H57: =SUM(H50:H56) -> 169.3485882 | I57: =SUM(I50:I56) -> 218.2585882 | J57: =SUM(J50:J56) -> 267.1685882
A58: contrôle | C58: =+C57-C48 -> 0 | D58: =+D57-D48 -> 0 | F58: =+F57-F48 -> 0 | G58: =+G57-G48 -> 0 | H58: =+H57-H48 -> 0 | I58: =+I57-I48 -> 0 | J58: =+J57-J48 -> 0
A59: =A1 -> ------------------------------------------------------------------------------------------------------------------------------------------------------------------------------------------------------------------------------------------------------------------------------------------------------------
A60: BFR | C60: =+C40 -> 2007 | D60: =+D40 -> 2008 | F60: =+F40 -> 2009 | G60: 2010 | H60: 2011 | I60: 2012 | J60: 2013 | K60: 2014 | L60: 2015 | M60: 2016 | N60: 2017 | O60: 2018 | P60: 2019
A61: Stocks | C61: =+C53 -> 15 | D61: =+D53 -> 16 | F61: 17 | G61: 17 | H61: 17 | I61: 17 | J61: 17
A62: Clients | C62: =+C54 -> 0 | D62: =+D54 -> 0 | F62: 0 | G62: 0 | H62: 0 | I62: 0 | J62: 0
A63: Fournisseurs | C63: =+C45 -> 0 | D63: =+D45 -> 0 | F63: 0 | G63: 0 | H63: 0 | I63: 0 | J63: 0
A64: BFR | C64: =+C61+C62-C63 -> 15 | D64: =+D61+D62-D63 -> 16 | F64: =+F61+F62-F63 -> 17 | G64: =+G61+G62-G63 -> 17 | H64: =+H61+H62-H63 -> 17 | I64: =+I61+I62-I63 -> 17 | J64: =+J61+J62-J63 -> 17
A65: BFR%CA | C65: =+C64/C5 -> 0.01265822785 | D65: =+D64/D5 -> 0.0125 | F65: =+F64/F5 -> 0.01231884058 | G65: =+G64/G5 -> 0.01231884058 | H65: =+H64/H5 -> 0.01231884058 | I65: =+I64/I5 -> 0.01231884058 | J65: =+J64/J5 -> 0.01231884058
A66: Delta BFR | C66: =-C64 -> -15 | D66: =C64-D64 -> -1 | F66: =D64-F64 -> -1 | G66: =F64-G64 -> 0 | H66: =G64-H64 -> 0 | I66: =H64-I64 -> 0 | J66: =I64-J64 -> 0
A67: =A1 -> ------------------------------------------------------------------------------------------------------------------------------------------------------------------------------------------------------------------------------------------------------------------------------------------------------------
A68: =A1 -> ------------------------------------------------------------------------------------------------------------------------------------------------------------------------------------------------------------------------------------------------------------------------------------------------------------
A69: Comptes et Business Plan du Foyer Lanson : | I69: =I2 -> BP2 | J69: =J2 -> JSC le 05/06/2009
A70: =A1 -> ------------------------------------------------------------------------------------------------------------------------------------------------------------------------------------------------------------------------------------------------------------------------------------------------------------
A71: Foyer Lanson | C71: =C60 -> 2007 | D71: =D60 -> 2008 | F71: =F60 -> 2009 | G71: 2010 | H71: 2011 | I71: 2012 | J71: 2013 | K71: 2014 | L71: 2015 | M71: 2016 | N71: 2017 | O71: 2018 | P71: 2019
A72: Salaires puis Retraites | C72: =C13/3*2*0.8 -> 80 | D72: =D13/3*2*0.8 -> 80 | F72: =F13/3*2*0.8 -> 80 | G72: =G13/3*2*0.8 -> 80 | H72: 25 | I72: =H72 -> 25 | J72: 25 | K72: 25 | L72: 25 | M72: 25 | N72: 25 | O72: 25 | P72: 25
A73: Dividendes | D73: =-D29 -> 0.3 | F73: =-F29 -> 80 | G73: 52 | H73: 53 | I73: 0 | J73: 0 | K73: 0 | L73: 0 | M73: 0 | N73: 0 | O73: 0 | P73: 0
A74: +V mobilières | I74: =F89-H140 -> 15
A75: Revenus valeurs mob | B75: 0.04 | F75: =$B$75*(D105+D106+D108) -> 11.68 | G75: =$B$75*(F105+F106+F108) -> 30.1472 | H75: 34.353088 | I75: 42.92721152 | J75: 34.64429998 | K75: 35.33718598 | L75: 36.0439297 | M75: 36.76480829 | N75: 37.50010446 | O75: 38.25010655 | P75: 39.01510868
A76: Loyers | C76: =C11 -> 9 | D76: =D11 -> 9 | F76: =F11 -> 9
A77: Charges foncières | F77: 3
A78: Charges quotidiennes | F78: 40 | G78: 40 | H78: 40 | I78: 40 | J78: 40 | K78: 40 | L78: 40 | M78: 40 | N78: 40 | O78: 40 | P78: 40
A79: I/dividendes | F79: =IF((0.6*F73-4)*$B$81<0,0,(0.6*F73-4)*$B$81) -> 13.2 | G79: 8.16 | H79: 8.34 | I79: 0 | J79: 0 | K79: 0 | L79: 0 | M79: 0 | N79: 0 | O79: 0 | P79: 0
A80: I/+V mob | I80: -3
A81: Impôt progressif | B81: 0.3 | F81: =F72*0.9*$B$81-2*5.3+(F76-F77)*$B$81 -> 12.8 | G81: =G72*0.9*$B$81-2*5.3+(G76-G77)*$B$81 -> 11 | H81: =IF(H72*0.9*$B$81-2*5.3+(H76-H77)*$B$81<0,0,H72*0.9*$B$81-2*5.3+(H76-H77)*$B$81) -> 0 | I81: =IF(I72*0.9*$B$81-2*5.3+(I76-I77)*$B$81<0,0,I72*0.9*$B$81-2*5.3+(I76-I77)*$B$81) -> 0 | J81: 0 | K81: 0 | L81: 0 | M81: 0 | N81: 0 | O81: 0 | P81: 0
A82: Total IRPP | F82: =+F81+F79 -> 26 | G82: 19.16 | H82: 8.34 | I82: 0 | J82: 0 | K82: 0 | L82: 0 | M82: 0 | N82: 0 | O82: 0 | P82: 0
A83: ISF | I83: 1 | J83: 1 | K83: 1 | L83: 1 | M83: 1 | N83: 1 | O83: 1 | P83: 1
A84: Dépenses exceptionnelles
A85: Disponible | F85: =+F72+F73+F74+F75+F76-F77-F78-F82-F83-F84 -> 111.68 | G85: 102.9872 | H85: 64.013088 | I85: 41.92721152 | J85: 18.64429998 | K85: 19.33718598 | L85: 20.0439297 | M85: 20.76480829 | N85: 21.50010446 | O85: 22.25010655 | P85: 23.01510868
A86: =A1 -> ------------------------------------------------------------------------------------------------------------------------------------------------------------------------------------------------------------------------------------------------------------------------------------------------------------
A87: Financement foyer Lanson | C87: =C71 -> 2007 | D87: =D71 -> 2008 | F87: =F71 -> 2009 | G87: 2010 | H87: 2011 | I87: 2012 | J87: 2013 | K87: 2014 | L87: 2015 | M87: 2016 | N87: 2017 | O87: 2018 | P87: 2019
A88: MBA | C88: =C85 -> 0 | D88: =D85 -> 0 | F88: =F85 -> 111.68 | G88: 102.9872 | H88: 64.013088 | I88: 41.92721152 | J88: 18.64429998 | K88: 19.33718598 | L88: 20.0439297 | M88: 20.76480829 | N88: 21.50010446 | O88: 22.25010655 | P88: 23.01510868
A89: Immobilier privé +/- | F89: 350 | I89: -250
A90: Immobilier de rapport
A91: Valeurs mobilières +/- | F91: -15 | I91: 15
A92: Assurance vie/capitalisation | F92: -435 | G92: -75 | H92: -180 | I92: 235
A93: Participations Lanson Gastro | H93: 149
A94: Endettement
A95: Capitalisation cachée | F95: =-F75 -> -11.68 | G95: =-G75 -> -30.1472 | H95: =-H75 -> -34.353088 | I95: =-I75 -> -42.92721152 | J95: =-J75/2 -> -17.32214999 | K95: =-K75/2 -> -17.66859299 | L95: -18.02196485 | M95: -18.38240415 | N95: -18.75005223 | O95: -19.12505327 | P95: -19.50755434
A96: Liquidités DP | F96: =D97 -> 5 | G96: =F97 -> 5 | H96: 2.84 | I96: 1.5 | J96: 0.5 | K96: 1.82214999 | L96: 3.490742981 | M96: 5.512707831 | N96: 7.895111978 | O96: 10.64516421 | P96: 13.77021748
A97: Liquidités FP | D97: 5 | F97: =SUM(F88:F96) -> 5 | G97: 2.84 | H97: 1.5 | I97: 0.5 | J97: 1.82214999 | K97: 3.490742981 | L97: 5.512707831 | M97: 7.895111978 | N97: 10.64516421 | O97: 13.77021748 | P97: 17.27777182
A98: =A1 -> ------------------------------------------------------------------------------------------------------------------------------------------------------------------------------------------------------------------------------------------------------------------------------------------------------------
A99: Bilan foyer Lanson | C99: =C87 -> 2007 | D99: =D87 -> 2008 | F99: =F87 -> 2009 | G99: 2010 | H99: 2011 | I99: 2012 | J99: 2013 | K99: 2014 | L99: 2015 | M99: 2016 | N99: 2017 | O99: 2018 | P99: 2019
A100: Capitaux propres | D100: 796 | F100: =D100+F85 -> 907.68 | G100: =F100+G85 -> 1010.6672 | H100: 1074.680288 | I100: 1116.6075 | J100: 1135.2518 | K100: 1154.588985 | L100: 1174.632915 | M100: 1195.397723 | N100: 1216.897828 | O100: 1239.147934 | P100: 1262.163043
A101: Endettement | D101: 0
A103: Immobilier privé +/- | D103: 350 | F103: =D103-F89 -> 0 | G103: =F103-G89 -> 0 | H103: 0 | I103: 250 | J103: 250 | K103: 250 | L103: 250 | M103: 250 | N103: 250 | O103: 250 | P103: 250
A104: Immobilier de rapport | D104: 0 | F104: =D104-F90 -> 0 | G104: =F104-G90 -> 0 | H104: 0 | I104: 0 | J104: 0 | K104: 0 | L104: 0 | M104: 0 | N104: 0 | O104: 0 | P104: 0
A105: Valeurs mobilières +/- | D105: 40 | F105: =D105-F91 -> 55 | G105: =F105-G91 -> 55 | H105: 55 | I105: 40 | J105: 40 | K105: 40 | L105: 40 | M105: 40 | N105: 40 | O105: 40 | P105: 40
A106: Assurance vie/capitalisation | D106: 252 | F106: =D106-F92 -> 687 | G106: =F106-G92 -> 762 | H106: 942 | I106: 707 | J106: 707 | K106: 707 | L106: 707 | M106: 707 | N106: 707 | O106: 707 | P106: 707
A107: Participations | D107: 149 | F107: =D107-F93 -> 149 | G107: =F107-G93 -> 149 | H107: 0 | I107: 0 | J107: 0 | K107: 0 | L107: 0 | M107: 0 | N107: 0 | O107: 0 | P107: 0
A108: Capitalisation cachée | F108: =D108-F95 -> 11.68 | G108: =F108-G95 -> 41.8272 | H108: 76.180288 | I108: 119.1074995 | J108: 136.4296495 | K108: 154.0982425 | L108: 172.1202074 | M108: 190.5026115 | N108: 209.2526637 | O108: 228.377717 | P108: 247.8852713
A109: Liquidités | D109: =D97 -> 5 | F109: =F97 -> 5 | G109: 2.84 | H109: 1.5 | I109: 0.5 | J109: 1.82214999 | K109: 3.490742981 | L109: 5.512707831 | M109: 7.895111978 | N109: 10.64516421 | O109: 13.77021748 | P109: 17.27777182
A110: total | D110: =SUM(D103:D109) -> 796 | F110: =SUM(F103:F109) -> 907.68 | G110: 1010.6672 | H110: 1074.680288 | I110: 1116.6075 | J110: 1135.2518 | K110: 1154.588985 | L110: 1174.632915 | M110: 1195.397723 | N110: 1216.897828 | O110: 1239.147934 | P110: 1262.163043
A111: check | D111: =D110-SUM(D100:D101) -> 0 | F111: =F110-SUM(F100:F101) -> 0 | G111: 0 | H111: 0 | I111: 0 | J111: 0 | K111: 0 | L111: 0 | M111: 0 | N111: 0 | O111: 0 | P111: 0
A112: =A1 -> ------------------------------------------------------------------------------------------------------------------------------------------------------------------------------------------------------------------------------------------------------------------------------------------------------------
A113: =A1 -> ------------------------------------------------------------------------------------------------------------------------------------------------------------------------------------------------------------------------------------------------------------------------------------------------------------
A114: Comptes et Business Plan de la SCI Lanson IS : | I114: =I69 -> BP2 | J114: =J69 -> JSC le 05/06/2009
A115: =A1 -> ------------------------------------------------------------------------------------------------------------------------------------------------------------------------------------------------------------------------------------------------------------------------------------------------------------
A116: SCI Lanson | C116: =C99 -> 2007 | D116: =D99 -> 2008 | F116: =F99 -> 2009 | G116: 2010 | H116: 2011 | I116: 2012 | J116: 2013 | K116: 2014 | L116: 2015 | M116: 2016 | N116: 2017 | O116: 2018 | P116: 2019
A117: Revenus locatifs | G117: =G11 -> 35 | H117: =H11 -> 35 | I117: 35 | J117: 35 | K117: 0 | L117: 0 | M117: 0 | N117: 0 | O117: 0 | P117: 0
A118: Charges foncières | G118: 3 | H118: 3 | I118: 3 | J118: 3 | K118: 3 | L118: 3 | M118: 3 | N118: 3 | O118: 3 | P118: 3
A119: Amortissements | G119: 15 | H119: 15 | I119: 15 | J119: 15 | K119: 15 | L119: 15 | M119: 15 | N119: 15 | O119: 15 | P119: 15
A120: Résultat d'exploitation | G120: =G117-G118-G119 -> 17 | H120: 17 | I120: 17 | J120: 17 | K120: -18 | L120: -18 | M120: -18 | N120: -18 | O120: -18 | P120: -18
A121: Frais financiers | B121: 0.05 | G121: =$B$121*(F137) -> 17.5 | H121: =$B$121*(G137) -> 16.75 | I121: =$B$121*(H137) -> 16 | J121: =$B$121*(I137) -> 15.25 | K121: =$B$121*(J137) -> 14.5 | L121: 13.75 | M121: 13 | N121: 12.25 | O121: 11.5 | P121: 10.75
A122: Impôt
A123: Résultat net | G123: =G120-G121 -> -0.5 | H123: =H120-H121 -> 0.25 | I123: =I120-I121 -> 1 | J123: =J120-J121 -> 1.75 | K123: =K120-K121 -> -32.5 | L123: -31.75 | M123: -31 | N123: -30.25 | O123: -29.5 | P123: -28.75
A124: =A1 -> ------------------------------------------------------------------------------------------------------------------------------------------------------------------------------------------------------------------------------------------------------------------------------------------------------------
A125: Financement SCI Lanson | C125: =C116 -> 2007 | D125: =D116 -> 2008 | F125: =F116 -> 2009 | G125: 2010 | H125: 2011 | I125: 2012 | J125: 2013 | K125: 2014 | L125: 2015 | M125: 2016 | N125: 2017 | O125: 2018 | P125: 2019
A126: MBA | G126: =G123+G119 -> 14.5 | H126: =H123+H119 -> 15.25 | I126: =I123+I119 -> 16 | J126: =J123+J119 -> 16.75 | K126: =K123+K119 -> -17.5 | L126: -16.75 | M126: -16 | N126: -15.25 | O126: -14.5 | P126: -13.75
A127: Cap+/-
A128: CCrt+/-
A129: Defi+/- | G129: -15 | H129: -15 | I129: -15 | J129: -15 | K129: -15 | L129: -15 | M129: -15 | N129: -15 | O129: -15 | P129: -15
A130: Immob+/- | G130: =-G89 -> 0
A131: Dispo DP | G131: =F142 -> 0 | H131: =G142 -> -0.5 | I131: =H142 -> -0.25 | J131: =I142 -> 0.75 | K131: =J142 -> 2.5 | L131: -30 | M131: -61.75 | N131: -92.75 | O131: -123 | P131: -152.5
A132: Dispo FP | G132: =SUM(G126:G131) -> -0.5 | H132: -0.25 | I132: 0.75 | J132: 2.5 | K132: -30 | L132: -61.75 | M132: -92.75 | N132: -123 | O132: -152.5 | P132: -181.25
A133: =A1 -> ------------------------------------------------------------------------------------------------------------------------------------------------------------------------------------------------------------------------------------------------------------------------------------------------------------
A134: Bilan SCI Lanson | C134: =C125 -> 2007 | D134: =D125 -> 2008 | F134: =F125 -> 2009 | G134: 2010 | H134: 2011 | I134: 2012 | J134: 2013 | K134: 2014 | L134: 2015 | M134: 2016 | N134: 2017 | O134: 2018 | P134: 2019
A135: Capropres | F135: =-F91 -> 15 | G135: =F135+G123 -> 14.5 | H135: =G135+H123 -> 14.75 | I135: =H135+I123 -> 15.75 | J135: =I135+J123 -> 17.5 | K135: =J135+K123 -> -15 | L135: -46.75 | M135: -77.75 | N135: -108 | O135: -137.5 | P135: -166.25
A136: CCrt
A137: Defi | F137: 350 | G137: =F137+G129 -> 335 | H137: =G137+H129 -> 320 | I137: =H137+I129 -> 305 | J137: =I137+J129 -> 290 | K137: =J137+K129 -> 275 | L137: 260 | M137: 245 | N137: 230 | O137: 215 | P137: 200
A138: Total | F138: =SUM(F135:F137) -> 365 | G138: 349.5 | H138: 334.75 | I138: 320.75 | J138: 307.5 | K138: 260 | L138: 213.25 | M138: 167.25 | N138: 122 | O138: 77.5 | P138: 33.75
A140: Immobilisations | F140: =F89+F135 -> 365 | G140: =F140-G119 -> 350 | H140: =G140-H119 -> 335 | I140: =H140-I119 -> 320 | J140: =I140-J119 -> 305 | K140: =J140-K119 -> 290 | L140: 275 | M140: 260 | N140: 245 | O140: 230 | P140: 215
A141: Autres
A142: Cash | G142: =G132 -> -0.5 | H142: =H132 -> -0.25 | I142: =I132 -> 0.75 | J142: =J132 -> 2.5 | K142: =K132 -> -30 | L142: -61.75 | M142: -92.75 | N142: -123 | O142: -152.5 | P142: -181.25
A143: Total | F143: =SUM(F140:F142) -> 365 | G143: 349.5 | H143: 334.75 | I143: 320.75 | J143: 307.5 | K143: 260 | L143: 213.25 | M143: 167.25 | N143: 122 | O143: 77.5 | P143: 33.75
A144: check | F144: =F143-F138 -> 0 | G144: 0 | H144: 0 | I144: 0 | J144: 0 | K144: 0 | L144: 0 | M144: 0 | N144: 0 | O144: 0 | P144: 0
A145: =A1 -> ------------------------------------------------------------------------------------------------------------------------------------------------------------------------------------------------------------------------------------------------------------------------------------------------------------

Sheet BP3
A1: =REPT("-",300) -> ------------------------------------------------------------------------------------------------------------------------------------------------------------------------------------------------------------------------------------------------------------------------------------------------------------
A2: Comptes et Business Plan de la Société Lanson gastronomie : | I2: BP2
A3: =A1 -> ------------------------------------------------------------------------------------------------------------------------------------------------------------------------------------------------------------------------------------------------------------------------------------------------------------
A4: EXPLOITATION en K€ | C4: 2007 | D4: 2008 | F4: 2009 | G4: =F4+1 -> 2010 | H4: 2011 | I4: 2012 | J4: 2013 | K4: 2014 | L4: 2015 | M4: 2016 | N4: 2017 | O4: 2018 | P4: 2019 | Q4: 2020
A5: CA | C5: 1185 | D5: 1280 | F5: 1380 | G5: 1380 | H5: 1380 | I5: 1380 | J5: 1380
A6: Autres produits | C6: 3 | D6: 2
A7: Coût des ventes | C7: =495+4 -> 499 | D7: =539-2 -> 537 | F7: =D7 -> 537 | G7: =+F7 -> 537 | H7: =+G7 -> 537 | I7: =+H7 -> 537 | J7: =+I7 -> 537
A8: MB% | C8: =(C5-C7)/C5 -> 0.5789029536 | D8: =(D5-D7)/D5 -> 0.58046875 | F8: =+F9/F5 -> 0.6108695652 | G8: =+G9/G5 -> 0.6108695652 | H8: =+H9/H5 -> 0.6108695652 | I8: =+I9/I5 -> 0.6108695652 | J8: =+J9/J5 -> 0.6108695652
A9: Marge brute | C9: =C5+C6-C7 -> 689 | D9: =D5+D6-D7 -> 745 | F9: =F5-F7 -> 843 | G9: =+G5-G7 -> 843 | H9: =+H5-H7 -> 843 | I9: =+I5-I7 -> 843 | J9: =+J5-J7 -> 843
A10: AACE hors loyers Lanson | C10: =131-C11 -> 122 | D10: =136-D11 -> 127 | F10: =140-F11 -> 140 | G10: 131 | H10: 131 | I10: 131 | J10: 131
A11: Loyers Lanson | C11: 9 | D11: 9
A12: Salaires et charges employés | C12: =323+144-C13 -> 327 | D12: =373+156-D13 -> 389 | F12: =+D12 -> 389 | G12: =+F12 -> 389 | H12: =+G12 -> 389 | I12: =+H12 -> 389 | J12: =+I12 -> 389
A13: Salaires et charges Dtion | C13: 140 | D13: 140 | F13: 140 | G13: 140 | H13: 140 | I13: 140 | J13: 140
A14: Impôts et Taxes | C14: 31 | D14: 26 | F14: 30 | G14: =+F14/F5*G5 -> 30 | H14: =+G14/G5*H5 -> 30 | I14: =+H14/H5*I5 -> 30 | J14: =+I14/I5*J5 -> 30
A15: Autres charges
A16: Charges d'exploitation | C16: =SUM(C10:C15) -> 629 | D16: =SUM(D10:D15) -> 691 | F16: =SUM(F10:F15) -> 699 | G16: =SUM(G10:G15) -> 690 | H16: =SUM(H10:H15) -> 690 | I16: =SUM(I10:I15) -> 690 | J16: =SUM(J10:J15) -> 690
A17: Amortissements | C17: 47 | D17: 43 | F17: 40 | G17: 60 | H17: 60 | I17: 60 | J17: 60
A18: Provisions
A19: EBIT | C19: =C9-C16-C17-C18 -> 13 | D19: =D9-D16-D17-D18 -> 11 | F19: =F9-F16-F17-F18 -> 104 | G19: =G9-G16-G17-G18 -> 93 | H19: =H9-H16-H17-H18 -> 93 | I19: =I9-I16-I17-I18 -> 93 | J19: =J9-J16-J17-J18 -> 93
A20: Résultat financier | B20: 0.05 | C20: -2.5 | D20: -2.5 | F20: =-$B$20*D44 -> -1.85 | G20: =-$B$20*F44 -> 0 | H20: =-$B$20*G44 -> -17.5 | I20: =-$B$20*H44 -> -16.75 | J20: =-$B$20*I44 -> -16
A21: Résultat courant avt impôts | C21: =C19+C20 -> 10.5 | D21: =D19+D20 -> 8.5 | F21: =F19+F20 -> 102.15 | G21: =G19+G20 -> 93 | H21: =H19+H20 -> 75.5 | I21: =I19+I20 -> 76.25 | J21: =J19+J20 -> 77
A22: Exceptionnels
A23: IS | B23: 0.3 | C23: -1.4 | D23: -1.2 | F23: =-F21*$B$23 -> -30.645 | G23: =-$B$23*G21 -> -27.9 | H23: =-$B$23*H21 -> -22.65 | I23: =-$B$23*I21 -> -22.875 | J23: =-$B$23*J21 -> -23.1
A24: Résultat net | C24: =C21+C22+C23 -> 9.1 | D24: =D21+D22+D23 -> 7.3 | F24: =F21+F22+F23 -> 71.505 | G24: =G21+G22+G23 -> 65.1 | H24: =H21+H22+H23 -> 52.85 | I24: =I21+I22+I23 -> 53.375 | J24: =J21+J22+J23 -> 53.9
A25: Marge brute Autofincmt | C25: =C24+C17 -> 56.1 | D25: =D24+D17 -> 50.3 | F25: =F24+F17 -> 111.505 | G25: =G24+G17 -> 125.1 | H25: =H24+H17 -> 112.85 | I25: =I24+I17 -> 113.375 | J25: =J24+J17 -> 113.9
A26: =A1 -> ------------------------------------------------------------------------------------------------------------------------------------------------------------------------------------------------------------------------------------------------------------------------------------------------------------
A27: FINANCEMENT en K€ | C27: =C4 -> 2007 | D27: =D4 -> 2008 | F27: =F4 -> 2009 | G27: 2010 | H27: 2011 | I27: 2012 | J27: 2013 | K27: 2014 | L27: 2015 | M27: 2016 | N27: 2017 | O27: 2018 | P27: 2019
A28: Marge Brute Autofinancement | D28: =D25 -> 50.3 | F28: =F25 -> 111.505 | G28: =G25 -> 125.1 | H28: =H25 -> 112.85 | I28: =I25 -> 113.375 | J28: =J25 -> 113.9
A29: Capital +/- | C29: =C41 -> 105 | D29: =+D41-C41-D24 -> -0.3 | F29: -60 | G29: -70 | H29: -50
A30: Cptes crts +/-
A31: Dettes financières +/- | C31: =C44 -> 69 | D31: =D44-C44 -> -32 | F31: -37 | G31: 350 | H31: -15 | I31: -15 | J31: -15
A32: Social Fiscal +/- | C32: =C46 -> 57 | D32: =D46-C46 -> -3
A33: BFR+/- | C33: =C66 -> -15 | D33: =D66 -> -1 | F33: =F66 -> -1 | G33: =G66 -> 0 | H33: =H66 -> 0 | I33: =I66 -> 0 | J33: =J66 -> 0
A34: Immobilisations +/- | C34: =-C50-C51-C52 -> -140 | D34: =C51+C50-D17-D51-D50 -> -38 | F34: =-F17 -> -40 | G34: =-G17-G31 -> -410 | H34: -40 | I34: -40 | J34: -40
A35: Autres+/- | C35: =C47-C55 -> -16 | D35: =+D47-C47+C55-D55 -> -5
A36: Dispo Début Période | C36: =B37 -> 0 | D36: =C37 -> 60 | F36: =D37 -> 31 | G36: =F37 -> 4.505 | H36: =G37 -> -0.395 | I36: =H37 -> 7.455 | J36: =I37 -> 65.83
A37: Dispo Fin Période | C37: =SUM(C28:C36) -> 60 | D37: =SUM(D28:D36) -> 31 | F37: =SUM(F28:F36) -> 4.505 | G37: =SUM(G28:G36) -> -0.395 | H37: =SUM(H28:H36) -> 7.455 | I37: =SUM(I28:I36) -> 65.83 | J37: =SUM(J28:J36) -> 124.73
A38: contrôle | C38: =C37-C56 -> 0 | D38: =D37-D56 -> 0 | F38: =F37-F56 -> 0 | G38: =G37-G56 -> 0 | H38: =H37-H56 -> 0 | I38: =I37-I56 -> 0 | J38: =J37-J56 -> 0
A39: =A1 -> ------------------------------------------------------------------------------------------------------------------------------------------------------------------------------------------------------------------------------------------------------------------------------------------------------------
A40: BILANS en K€ | C40: =C27 -> 2007 | D40: =D27 -> 2008 | F40: =F27 -> 2009 | G40: 2010 | H40: 2011 | I40: 2012 | J40: 2013 | K40: 2014 | L40: 2015 | M40: 2016 | N40: 2017 | O40: 2018 | P40: 2019
A41: Capitaux propres | C41: 105 | D41: 112 | F41: =D41+F24+F29 -> 123.505 | G41: =F41+G24+G29 -> 118.605 | H41: =G41+H24+H29 -> 121.455 | I41: =H41+I24+I29 -> 174.83 | J41: =I41+J24+J29 -> 228.73
A42: Provisions
A43: Cptes courants
A44: Dettes financières | C44: 69 | D44: 37 | F44: =D44+F31 -> 0 | G44: =F44+G31 -> 350 | H44: =G44+H31 -> 335 | I44: =H44+I31 -> 320 | J44: =I44+J31 -> 305
A45: Dettes Fournisseurs
A46: Social Fiscal | C46: 57 | D46: 54 | F46: =D46+F32 -> 54 | G46: =F46+G32 -> 54 | H46: =G46+H32 -> 54 | I46: =H46+I32 -> 54 | J46: =I46+J32 -> 54
A47: Autres
A48: Total | C48: =SUM(C41:C47) -> 231 | D48: =SUM(D41:D47) -> 203 | F48: =SUM(F41:F47) -> 177.505 | G48: =SUM(G41:G47) -> 522.605 | H48: =SUM(H41:H47) -> 510.455 | I48: =SUM(I41:I47) -> 548.83 | J48: =SUM(J41:J47) -> 587.73
A50: Actifs incorporels | C50: 6 | D50: 6 | F50: =D50 -> 6 | G50: =F50 -> 6 | H50: =G50 -> 6 | I50: =H50 -> 6 | J50: =I50 -> 6
A51: Actifs corporels | C51: =24+107 -> 131 | D51: =25+101 -> 126 | F51: =D51-F34-F17 -> 126 | G51: =F51-G34-G17 -> 476 | H51: =G51-H34-H17 -> 456 | I51: =H51-I34-I17 -> 436 | J51: =I51-J34-J17 -> 416
A52: Actifs financiers | C52: 3 | D52: 3 | F52: =D52 -> 3 | G52: =F52 -> 3 | H52: =G52 -> 3 | I52: =H52 -> 3 | J52: =I52 -> 3
A53: Stocks | C53: 15 | D53: 16 | F53: =F61 -> 17 | G53: 17 | H53: 17 | I53: 17 | J53: 17
A54: Clients | F54: 0 | G54: 0 | H54: 0 | I54: 0 | J54: 0
A55: Autres | C55: =7+1+8 -> 16 | D55: =10+1+10 -> 21 | F55: =D55-F35 -> 21 | G55: =F55-G35 -> 21 | H55: =G55-H35 -> 21 | I55: =H55-I35 -> 21 | J55: =I55-J35 -> 21
A56: Disponibilités | C56: 60 | D56: 31 | F56: =F37 -> 4.505 | G56: =G37 -> -0.395 | H56: =H37 -> 7.455 | I56: =I37 -> 65.83 | J56: =J37 -> 124.73
A57: Total | C57: =SUM(C50:C56) -> 231 | D57: =SUM(D50:D56) -> 203 | F57: =SUM(F50:F56) -> 177.505 | G57: =SUM(G50:G56) -> 522.605 | H57: =SUM(H50:H56) -> 510.455 | I57: =SUM(I50:I56) -> 548.83 | J57: =SUM(J50:J56) -> 587.73
A58: contrôle | C58: =+C57-C48 -> 0 | D58: =+D57-D48 -> 0 | F58: =+F57-F48 -> 0 | G58: =+G57-G48 -> 0 | H58: =+H57-H48 -> 0 | I58: =+I57-I48 -> 0 | J58: =+J57-J48 -> 0
A59: =A1 -> ------------------------------------------------------------------------------------------------------------------------------------------------------------------------------------------------------------------------------------------------------------------------------------------------------------
A60: BFR | C60: =+C40 -> 2007 | D60: =+D40 -> 2008 | F60: =+F40 -> 2009 | G60: 2010 | H60: 2011 | I60: 2012 | J60: 2013 | K60: 2014 | L60: 2015 | M60: 2016 | N60: 2017 | O60: 2018 | P60: 2019
A61: Stocks | C61: =+C53 -> 15 | D61: =+D53 -> 16 | F61: 17 | G61: 17 | H61: 17 | I61: 17 | J61: 17
A62: Clients | C62: =+C54 -> 0 | D62: =+D54 -> 0 | F62: 0 | G62: 0 | H62: 0 | I62: 0 | J62: 0
A63: Fournisseurs | C63: =+C45 -> 0 | D63: =+D45 -> 0 | F63: 0 | G63: 0 | H63: 0 | I63: 0 | J63: 0
A64: BFR | C64: =+C61+C62-C63 -> 15 | D64: =+D61+D62-D63 -> 16 | F64: =+F61+F62-F63 -> 17 | G64: =+G61+G62-G63 -> 17 | H64: =+H61+H62-H63 -> 17 | I64: =+I61+I62-I63 -> 17 | J64: =+J61+J62-J63 -> 17
A65: BFR%CA | C65: =+C64/C5 -> 0.01265822785 | D65: =+D64/D5 -> 0.0125 | F65: =+F64/F5 -> 0.01231884058 | G65: =+G64/G5 -> 0.01231884058 | H65: =+H64/H5 -> 0.01231884058 | I65: =+I64/I5 -> 0.01231884058 | J65: =+J64/J5 -> 0.01231884058
A66: Delta BFR | C66: =-C64 -> -15 | D66: =C64-D64 -> -1 | F66: =D64-F64 -> -1 | G66: =F64-G64 -> 0 | H66: =G64-H64 -> 0 | I66: =H64-I64 -> 0 | J66: =I64-J64 -> 0
A67: =A1 -> ------------------------------------------------------------------------------------------------------------------------------------------------------------------------------------------------------------------------------------------------------------------------------------------------------------
A68: =A1 -> ------------------------------------------------------------------------------------------------------------------------------------------------------------------------------------------------------------------------------------------------------------------------------------------------------------
A69: Comptes et Business Plan du Foyer Lanson : | I69: =I2 -> BP2 | J69: =J2 -> 0
A70: =A1 -> ------------------------------------------------------------------------------------------------------------------------------------------------------------------------------------------------------------------------------------------------------------------------------------------------------------
A71: Foyer Lanson | C71: =C60 -> 2007 | D71: =D60 -> 2008 | F71: =F60 -> 2009 | G71: 2010 | H71: 2011 | I71: 2012 | J71: 2013 | K71: 2014 | L71: 2015 | M71: 2016 | N71: 2017 | O71: 2018 | P71: 2019
A72: Salaires puis Retraites net | C72: =C13/3*2*0.8 -> 74.66666667 | D72: =D13/3*2*0.8 -> 74.66666667 | F72: =F13/3*2*0.8 -> 74.66666667 | G72: =G13/3*2*0.8 -> 74.66666667 | H72: =H13/3*2*0.8 -> 74.66666667 | I72: 25 | J72: =I72 -> 25 | K72: 25 | L72: 25 | M72: 25 | N72: 25 | O72: 25 | P72: 25
A73: Dividendes | D73: =-D29 -> 0.3 | F73: =-F29 -> 60 | G73: 70 | H73: 50 | I73: 0 | J73: 0 | K73: 0 | L73: 0 | M73: 0 | N73: 0 | O73: 0 | P73: 0
A74: +V mobilières
A75: Revenus valeurs mob | B75: 0.04 | F75: =$B$75*(D105+D106+D108) -> 11.68 | G75: =$B$75*(F105+F106+F108) -> 15.3472 | H75: 33.361088 | I75: 43.49553152 | J75: 34.23535278 | K75: 35.03535278 | L75: 35.83535278 | M75: 36.63535278 | N75: 37.43535278 | O75: 38.23535278 | P75: 39.03535278
A76: Loyers | C76: =C11 -> 9 | D76: =D11 -> 9 | F76: 9 | G76: =G11 -> 0 | H76: 0 | I76: 0 | J76: 0 | K76: 0 | L76: 0 | M76: 0 | N76: 0 | O76: 0 | P76: 0
A77: Charges foncières | F77: 3
A78: Charges quotidiennes | F78: 40 | G78: 40 | H78: 40 | I78: 40 | J78: 40 | K78: 40 | L78: 40 | M78: 40 | N78: 40 | O78: 40 | P78: 40
A79: I/dividendes | B79: 0.301 | F79: =IF((0.6*F73-4)*$B$81<0,0,(0.6*F73-4)*$B$81) -> 9.6 | G79: =IF((0.6*G73-4)*$B$79<0,0,(0.6*G73-4)*$B$79) -> 11.438 | H79: 7.826 | I79: 0 | J79: 0 | K79: 0 | L79: 0 | M79: 0 | N79: 0 | O79: 0 | P79: 0
A80: I/+V mob | B80: 0.196 | I80: =IF((I75+I95)/2<9.2,0,+$B$80*(I75+I95)/2) -> 0 | J80: =IF((J75+J95)/2<9.2,0,+$B$80*(J75+J95)/2) -> 0 | K80: 0 | L80: 0 | M80: 0 | N80: 0 | O80: 0 | P80: 1.865464573
A81: Impôt progressif | B81: 0.3 | C81: 0.14 | F81: =F72*0.9*$B$81+(F76-F77)*$B$81-11 -> 10.96 | G81: =G72*0.9*$B$81+(G76-G77)*$B$81-11 -> 9.16 | H81: =IF(H72*0.9*$B$81+(H76-H77)*$B$81-11<0,0,H72*0.9*$B$81+(H76-H77)*$B$81-11) -> 9.16 | I81: =IF(I72*0.9*$C$81+(I76-I77)*$C$81-2.6<0,0,I72*0.9*$C$81+(I76-I77)*$C$81-2.6) -> 0.55 | J81: =IF(J72*0.9*$C$81+(J76-J77)*$C$81-2.6<0,0,J72*0.9*$C$81+(J76-J77)*$C$81-2.6) -> 0.55 | K81: 0.55 | L81: 0.55 | M81: 0.55 | N81: 0.55 | O81: 0.55 | P81: 0.55
A82: Total IRPP | F82: =+F81+F79+F80 -> 20.56 | G82: =+G81+G79+G80 -> 20.598 | H82: 16.986 | I82: 0.55 | J82: 0.55 | K82: 0.55 | L82: 0.55 | M82: 0.55 | N82: 0.55 | O82: 0.55 | P82: 2.415464573
A83: ISF | I83: 1 | J83: 1 | K83: 1 | L83: 1 | M83: 1 | N83: 1 | O83: 1 | P83: 1
A84: Dépenses exceptionnelles
A85: Disponible | F85: =+F72+F73+F74+F75+F76-F77-F78-F82-F83-F84 -> 91.78666667 | G85: 99.41586667 | H85: 101.0417547 | I85: 26.94553152 | J85: 17.68535278 | K85: 18.48535278 | L85: 19.28535278 | M85: 20.08535278 | N85: 20.88535278 | O85: 21.68535278 | P85: 20.61988821
A86: =A1 -> ------------------------------------------------------------------------------------------------------------------------------------------------------------------------------------------------------------------------------------------------------------------------------------------------------------
A87: Financement foyer Lanson | C87: =C71 -> 2007 | D87: =D71 -> 2008 | F87: =F71 -> 2009 | G87: 2010 | H87: 2011 | I87: 2012 | J87: 2013 | K87: 2014 | L87: 2015 | M87: 2016 | N87: 2017 | O87: 2018 | P87: 2019
A88: MBA | C88: =C85 -> 0 | D88: =D85 -> 0 | F88: =F85 -> 91.78666667 | G88: 99.41586667 | H88: 101.0417547 | I88: 26.94553152 | J88: 17.68535278 | K88: 18.48535278 | L88: 19.28535278 | M88: 20.08535278 | N88: 20.88535278 | O88: 21.68535278 | P88: 20.61988821
A89: Immobilier privé +/- | G89: 350 | I89: -250
A90: Immobilier de rapport
A91: Valeurs mobilières +/-
A92: Assurance vie/capitalisation | F92: -80 | G92: -435 | H92: -220 | I92: 275
A93: Participations Lanson Gastro | H93: 149
A94: Endettement
A95: Capitalisation cachée | F95: =-F75 -> -11.68 | G95: =-G75 -> -15.3472 | H95: =-H75 -> -33.361088 | I95: =-I75 -> -43.49553152 | J95: -20 | K95: -20 | L95: -20 | M95: -20 | N95: -20 | O95: -20 | P95: -20
A96: Liquidités DP | F96: =D97 -> 5 | G96: =F97 -> 5.106666667 | H96: 4.175333333 | I96: 0.856 | J96: 9.306 | K96: 6.991352781 | L96: 5.476705562 | M96: 4.762058342 | N96: 4.847411123 | O96: 5.732763904 | P96: 7.418116685
A97: Liquidités FP | D97: 5 | F97: =SUM(F88:F96) -> 5.106666667 | G97: 4.175333333 | H97: 0.856 | I97: 9.306 | J97: 6.991352781 | K97: 5.476705562 | L97: 4.762058342 | M97: 4.847411123 | N97: 5.732763904 | O97: 7.418116685 | P97: 8.038004893
A98: =A1 -> ------------------------------------------------------------------------------------------------------------------------------------------------------------------------------------------------------------------------------------------------------------------------------------------------------------
A99: Bilan foyer Lanson | C99: =C87 -> 2007 | D99: =D87 -> 2008 | F99: =F87 -> 2009 | G99: 2010 | H99: 2011 | I99: 2012 | J99: 2013 | K99: 2014 | L99: 2015 | M99: 2016 | N99: 2017 | O99: 2018 | P99: 2019
A100: Capitaux propres | D100: 796 | F100: =D100+F85 -> 887.7866667 | G100: =F100+G85 -> 987.2025333 | H100: 1088.244288 | I100: 1115.18982 | J100: 1132.875172 | K100: 1151.360525 | L100: 1170.645878 | M100: 1190.731231 | N100: 1211.616583 | O100: 1233.301936 | P100: 1253.921824
A101: Endettement | D101: 0
A103: Immobilier privé +/- | D103: 350 | F103: =D103-F89 -> 350 | G103: =F103-G89 -> 0 | H103: 0 | I103: 250 | J103: 250 | K103: 250 | L103: 250 | M103: 250 | N103: 250 | O103: 250 | P103: 250
A104: Immobilier de rapport | D104: 0 | F104: =D104-F90 -> 0 | G104: =F104-G90 -> 0 | H104: 0 | I104: 0 | J104: 0 | K104: 0 | L104: 0 | M104: 0 | N104: 0 | O104: 0 | P104: 0
A105: Valeurs mobilières +/- | D105: 40 | F105: =D105-F91 -> 40 | G105: =F105-G91 -> 40 | H105: 40 | I105: 40 | J105: 40 | K105: 40 | L105: 40 | M105: 40 | N105: 40 | O105: 40 | P105: 40
A106: Assurance vie/capitalisation | D106: 252 | F106: =D106-F92 -> 332 | G106: =F106-G92 -> 767 | H106: 987 | I106: 712 | J106: 712 | K106: 712 | L106: 712 | M106: 712 | N106: 712 | O106: 712 | P106: 712
A107: Participations | D107: 149 | F107: =D107-F93 -> 149 | G107: =F107-G93 -> 149 | H107: 0 | I107: 0 | J107: 0 | K107: 0 | L107: 0 | M107: 0 | N107: 0 | O107: 0 | P107: 0
A108: Capitalisation cachée | F108: =D108-F95 -> 11.68 | G108: =F108-G95 -> 27.0272 | H108: 60.388288 | I108: 103.8838195 | J108: 123.8838195 | K108: 143.8838195 | L108: 163.8838195 | M108: 183.8838195 | N108: 203.8838195 | O108: 223.8838195 | P108: 243.8838195
A109: Liquidités | D109: =D97 -> 5 | F109: =F97 -> 5.106666667 | G109: 4.175333333 | H109: 0.856 | I109: 9.306 | J109: 6.991352781 | K109: 5.476705562 | L109: 4.762058342 | M109: 4.847411123 | N109: 5.732763904 | O109: 7.418116685 | P109: 8.038004893
A110: total | D110: =SUM(D103:D109) -> 796 | F110: =SUM(F103:F109) -> 887.7866667 | G110: 987.2025333 | H110: 1088.244288 | I110: 1115.18982 | J110: 1132.875172 | K110: 1151.360525 | L110: 1170.645878 | M110: 1190.731231 | N110: 1211.616583 | O110: 1233.301936 | P110: 1253.921824
A111: check | D111: =D110-SUM(D100:D101) -> 0 | F111: =F110-SUM(F100:F101) -> 0 | G111: 0 | H111: 0 | I111: 0 | J111: 0 | K111: 0 | L111: 0 | M111: 0 | N111: 0 | O111: 0 | P111: 0
A112: =A1 -> ------------------------------------------------------------------------------------------------------------------------------------------------------------------------------------------------------------------------------------------------------------------------------------------------------------
A113: =A1 -> ------------------------------------------------------------------------------------------------------------------------------------------------------------------------------------------------------------------------------------------------------------------------------------------------------------
A114: Comptes et Business Plan de la SCI Lanson : | I114: =I69 -> BP2 | J114: =J69 -> 0
A115: =A1 -> ------------------------------------------------------------------------------------------------------------------------------------------------------------------------------------------------------------------------------------------------------------------------------------------------------------
A116: SCI Lanson | C116: =C99 -> 2007 | D116: =D99 -> 2008 | F116: =F99 -> 2009 | G116: 2010 | H116: 2011 | I116: 2012 | J116: 2013 | K116: 2014 | L116: 2015 | M116: 2016 | N116: 2017 | O116: 2018 | P116: 2019
A117: Revenus locatifs
A118: Charges foncières
A119: Amortissements
A120: Résultat d'exploitation
A121: Frais financiers
A122: Impôt
A123: Résultat net
A124: =A1 -> ------------------------------------------------------------------------------------------------------------------------------------------------------------------------------------------------------------------------------------------------------------------------------------------------------------
A125: Financement SCI Lanson | C125: =C116 -> 2007 | D125: =D116 -> 2008 | F125: =F116 -> 2009 | G125: 2010 | H125: 2011 | I125: 2012 | J125: 2013 | K125: 2014 | L125: 2015 | M125: 2016 | N125: 2017 | O125: 2018 | P125: 2019
A126: MBA
A127: Cap+/-
A128: CCrt+/-
A129: Defi+/-
A130: Immob+/-
A131: Dispo DP
A132: Dispo FP
A133: check
A134: =A1 -> ------------------------------------------------------------------------------------------------------------------------------------------------------------------------------------------------------------------------------------------------------------------------------------------------------------
A135: Bilan SCI Lanson | C135: =C125 -> 2007 | D135: =D125 -> 2008 | F135: =F125 -> 2009 | G135: 2010 | H135: 2011 | I135: 2012 | J135: 2013 | K135: 2014 | L135: 2015 | M135: 2016 | N135: 2017 | O135: 2018 | P135: 2019
A136: Capropres
A137: CCrt
A138: Defi
A139: Total
A141: Immobilisations
A142: Autres
A143: Cash
A144: Total
A145: check
A146: =A1 -> ------------------------------------------------------------------------------------------------------------------------------------------------------------------------------------------------------------------------------------------------------------------------------------------------------------

Sheet Titres
D1: BP1 | E1: BP2
A2: Immobilier privé +/- | D2: ='BP1'!I103 -> 250 | E2: ='BP3'!I103 -> 250
A3: Immobilier de rapport | D3: ='BP1'!I104 -> 0 | E3: ='BP3'!I104 -> 0
A4: Valeurs mobilières +/- | D4: ='BP1'!I105 -> 40 | E4: ='BP3'!I105 -> 40
A5: Assurance vie/capitalisation | D5: ='BP1'!I106 -> 572 | E5: ='BP3'!I106 -> 712
A6: Participations | D6: ='BP1'!I107 -> 0 | E6: ='BP3'!I107 -> 0
A7: Capitalisation cachée | D7: ='BP1'!I108 -> 80.17885952 | E7: ='BP3'!I108 -> 103.8838195
A8: Liquidités | D8: ='BP1'!I109 -> 8.813333333 | E8: ='BP3'!I109 -> 9.306
A9: total | D9: ='BP1'!I110 -> 950.9921929 | E9: ='BP3'!I110 -> 1115.18982
D11: Projections Economiques, financières et fiscales :
D13: LANSON GASTRONOMIE
D15: FOYER LANSON
D17: Sommaire :
D20: 1 - BP 1 : projection de l'organisation actuelle | K20: p.2
D22: 2 - BP2 : mise en place d'une SCI + portefeuille | K22: p.5
D24: 3 - BP3 : transfert du bien à Lanson Gastronomie | K24: p.8
D30: Arkanissim - JSC/ER juin 2009
